Workbook

Sheet USER TEC-Tec
B3: Nom du projet : | C3: Projet
B5: Résultat : | C5: =SUM(D32,D144,D228,D252) -> 0 | J5: E>0 | K5: E>0
B7: Consommation électrique : | C7: =D217 -> 0
B8: Production d'électricité : | C8: =+D222 -> 0
B10: Émissions de construction : | C10: =IF(D17=0,0,('BASE TEC-Tec'!L130+'BASE TEC-Tec'!L131)/D17*1000) -> 0
B11: Émissions d'exploitation : | C11: =IF(D17=0,0,'BASE TEC-Tec'!L396/D17*1000) -> 0
B13: =UPPER('BASE TEC-Tec'!A4) -> DONNÉES GÉNÉRALES | D13: =SUM(D32,D144,D228,D252) -> 0 | E13: Valeurs par défaut | F13: Unité | H13: =SUM(H32,H144,H228,H252) -> 0 | I13: =SUM(I32,I144,I228,I252) -> 0 | J13: =SUM(J32,J144,J228,J252) -> 0 | K13: =SUM(K32,K144,K228,K252) -> 0 | L13: Commentaires
B15: Nom du projet | D15: =C3 -> Projet | E15: =CONCATENATE(C3," par défaut") -> Projet par défaut | H15: Variante A | I15: Variante B | J15: Variante C | K15: Variante D
B16: Type de bâtiment | D16: - | E16: =D16 -> - | F16: liste déroulante | H16: - | I16: - | J16: - | K16: -
B17: Surface utile | D17: 0 | E17: =D17 -> 0 | F17: ='BASE TEC-Tec'!D6 -> m² utile | H17: 0 | I17: 0 | J17: 0 | K17: 0
B18: Surface de la parcelle | D18: 0 | E18: =D18 -> 0 | F18: ='BASE TEC-Tec'!D7 -> m² de foncier | H18: 0 | I18: 0 | J18: 0 | K18: 0
B20: Jardins | C20: surface | D20: 0 | E20: ='BASE TEC-Tec'!F8 -> 0 | F20: ='BASE TEC-Tec'!D8 -> m² | H20: 0 | I20: 0 | J20: 0 | K20: 0
B21: Parking extérieur véhicules | C21: surface | D21: 0 | E21: ='BASE TEC-Tec'!F9 -> 0 | F21: ='BASE TEC-Tec'!D9 -> m² | H21: 0 | I21: 0 | J21: 0 | K21: 0
B22: Cheminement extérieur piéton | C22: surface | D22: 0 | E22: ='BASE TEC-Tec'!F10 -> 0 | F22: ='BASE TEC-Tec'!D10 -> m² | H22: 0 | I22: 0 | J22: 0 | K22: 0
B23: Planchers | C23: surface hors sous-sol ni coursive ni toiture (SdP) | D23: 0 | E23: ='BASE TEC-Tec'!F11 -> 0 | F23: ='BASE TEC-Tec'!D11 -> m² | H23: 0 | I23: 0 | J23: 0 | K23: 0
B24: Sous-sols | C24: surface | D24: 0 | E24: ='BASE TEC-Tec'!F12 -> 0 | F24: ='BASE TEC-Tec'!D12 -> m² | H24: 0 | I24: 0 | J24: 0 | K24: 0
B25: Façades | C25: surface | D25: 0 | E25: ='BASE TEC-Tec'!F13 -> 0 | F25: ='BASE TEC-Tec'!D13 -> m² | H25: 0 | I25: 0 | J25: 0 | K25: 0
B26: Coursives extérieures | C26: surface | D26: 0 | E26: ='BASE TEC-Tec'!F14 -> 0 | F26: ='BASE TEC-Tec'!D14 -> m² | H26: 0 | I26: 0 | J26: 0 | K26: 0
B27: Toitures | C27: surface | D27: 0 | E27: ='BASE TEC-Tec'!F15 -> 0 | F27: ='BASE TEC-Tec'!D15 -> m² | H27: 0 | I27: 0 | J27: 0 | K27: 0
B29: ='BASE TEC-Tec'!B16 -> Rapport SU/SdP | D29: =IF(D23=0,0,D17/D23) -> 0 | E29: =IF(E23=0,0,'BASE TEC-Tec'!F16) -> 0 | F29: ='BASE TEC-Tec'!D16 -> [-] | H29: 0 | I29: 0 | J29: 0 | K29: 0
B30: ='BASE TEC-Tec'!B17 -> Indice de compacité | C30: Surface Façades / Surface Planchers | D30: =IF(D23=0,0,D25/D23) -> 0 | E30: =IF(E23=0,0,'BASE TEC-Tec'!F17) -> 0 | F30: ='BASE TEC-Tec'!D17 -> [-] | H30: 0 | I30: 0 | J30: 0 | K30: 0
B32: CONSTRUCTION | D32: =IF(D$17*D$18=0,0,'BASE TEC-Tec'!R131) -> 0 | E32: =IF(E$17*E$18=0,0,'BASE TEC-Tec'!S131) -> 0 | H32: 0 | I32: 0 | J32: 0 | K32: 0
B34: =UPPER('BASE TEC-Tec'!B19) -> CONCEPTION
C35: ='BASE TEC-Tec'!B20 -> trajets entre La Réunion et la métropole | D35: 0 | E35: ='BASE TEC-Tec'!F20 -> 0 | F35: ='BASE TEC-Tec'!D20 -> aller-retour | G35: 1 | H35: 0 | I35: 0 | J35: 0 | K35: 0
B37: =UPPER('BASE TEC-Tec'!B22) -> CHANGEMENT D'AFFECTATION DES SOLS
C38: ='BASE TEC-Tec'!B23 -> artificialisation nette | D38: 0 | E38: ='BASE TEC-Tec'!F23 -> 0 | F38: ='BASE TEC-Tec'!D23 -> m² | G38: 1 | H38: 0 | I38: 0 | J38: 0 | K38: 0
B40: =UPPER('BASE TEC-Tec'!B24) -> VOIRIE ET TRAITEMENT PAYSAGER
B41: Végétalisation | C41: ='BASE TEC-Tec'!B25 -> végétalisation (toiture végétalisée inclue) | D41: =+D20 -> 0 | E41: ='BASE TEC-Tec'!F25 -> 0 | F41: m² | G41: 1 | H41: 0 | I41: 0 | J41: 0 | K41: 0
B43: Parking | C43: ='BASE TEC-Tec'!B26 -> enrobé neuf | D43: 0 | E43: ='BASE TEC-Tec'!F26 -> 0 | F43: % des parkings extérieurs | G43: 1 | H43: 0 | I43: 0 | J43: 0 | K43: 0
B44: =IF(SUM(D43:D45)>1,"Erreur : total > 100%","") ->  | C44: ='BASE TEC-Tec'!B27 -> dallage en béton | D44: 0 | E44: ='BASE TEC-Tec'!F27 -> 0 | F44: =F$43 -> % des parkings extérieurs | G44: 1 | H44: 0 | I44: 0 | J44: 0 | K44: 0
C45: ='BASE TEC-Tec'!B28 -> pavage béton enherbé | D45: 0 | E45: ='BASE TEC-Tec'!F28 -> 0 | F45: =F$43 -> % des parkings extérieurs | G45: 1 | H45: 0 | I45: 0 | J45: 0 | K45: 0
B47: Cheminement | C47: ='BASE TEC-Tec'!B29 -> enrobé neuf | D47: 0 | E47: ='BASE TEC-Tec'!F29 -> 0 | F47: % des cheminements ext. | G47: 1 | H47: 0 | I47: 0 | J47: 0 | K47: 0
B48: =IF(SUM(D47:D49)>1,"Erreur : total > 100%","") ->  | C48: ='BASE TEC-Tec'!B30 -> dallage en béton | D48: 0 | E48: ='BASE TEC-Tec'!F30 -> 0 | F48: =F$47 -> % des cheminements ext. | G48: 1 | H48: 0 | I48: 0 | J48: 0 | K48: 0
C49: ='BASE TEC-Tec'!B31 -> matériau perméable | D49: 0 | E49: ='BASE TEC-Tec'!F31 -> 0 | F49: =F$47 -> % des cheminements ext. | G49: 1 | H49: 0 | I49: 0 | J49: 0 | K49: 0
B51: Clôtures & maçonnerie | C51: ='BASE TEC-Tec'!B32 -> murets maçonnés | D51: 0 | E51: ='BASE TEC-Tec'!F32 -> 0 | F51: m² | G51: 1 | H51: 0 | I51: 0 | J51: 0 | K51: 0
C52: ='BASE TEC-Tec'!B33 -> mur de soutènement | D52: 0 | E52: ='BASE TEC-Tec'!F33 -> 0 | F52: m² | G52: 1 | H52: 0 | I52: 0 | J52: 0 | K52: 0
B54: =UPPER("Fondations") -> FONDATIONS
C55: ='BASE TEC-Tec'!B38 -> nivellement dans la roche | D55: 0 | E55: =IF(E17*E18=0,"-",'BASE TEC-Tec'!D42) -> - | F55: sur l'emprise construite | G55: 1 | H55: 0 | I55: 0 | J55: 0 | K55: 0
B57: =IF(SUM(D57:D60)>1,"Erreur : total > 100%","") ->  | C57: ='BASE TEC-Tec'!B44 -> pieux béton | D57: 0 | E57: ='BASE TEC-Tec'!F44 -> 0 | F57: % de la surface fondée | G57: 1 | H57: 0 | I57: 0 | J57: 0 | K57: 0
C58: ='BASE TEC-Tec'!B45 -> micropieux | D58: 0 | E58: ='BASE TEC-Tec'!F45 -> 0 | F58: =F$57 -> % de la surface fondée | G58: 1 | H58: 0 | I58: 0 | J58: 0 | K58: 0
C59: ='BASE TEC-Tec'!B46 -> radier | D59: 0 | E59: ='BASE TEC-Tec'!F46 -> 0 | F59: =F$57 -> % de la surface fondée | G59: 1 | H59: 0 | I59: 0 | J59: 0 | K59: 0
C60: ='BASE TEC-Tec'!B47 -> superficielles | D60: 0 | E60: ='BASE TEC-Tec'!F47 -> 0 | F60: =F$57 -> % de la surface fondée | G60: 1 | H60: 0 | I60: 0 | J60: 0 | K60: 0
B62: =UPPER('BASE TEC-Tec'!B48) -> INFRASTRUCTURE
C63: ='BASE TEC-Tec'!B49 -> sous-sols | D63: =D24 -> 0 | E63: ='BASE TEC-Tec'!F49 -> 0 | F63: m² | G63: 1 | H63: 0 | I63: 0 | J63: 0 | K63: 0
C64: zone de poutres de reprise | D64: 0 | E64: ='BASE TEC-Tec'!F50 -> 0 | F64: m² | G64: 1 | H64: 0 | I64: 0 | J64: 0 | K64: 0
B66: =UPPER('BASE TEC-Tec'!B51) -> PLANCHERS
B67: =IF(SUM(D67:D71)>1,"Erreur : total > 100%","") ->  | C67: ='BASE TEC-Tec'!B52 -> béton | D67: 0 | E67: ='BASE TEC-Tec'!F52 -> 0 | F67: % planchers + coursives ext. | G67: 1 | H67: 0 | I67: 0 | J67: 0 | K67: 0
C68: ='BASE TEC-Tec'!B53 -> collaborant métal-béton | D68: 0 | E68: ='BASE TEC-Tec'!F53 -> 0 | F68: =F$67 -> % planchers + coursives ext. | G68: 1 | H68: 0 | I68: 0 | J68: 0 | K68: 0
C69: ='BASE TEC-Tec'!B54 -> collaborant bois-béton | D69: 0 | E69: ='BASE TEC-Tec'!F54 -> 0 | F69: =F$67 -> % planchers + coursives ext. | G69: 1 | H69: 0 | I69: 0 | J69: 0 | K69: 0
C70: ='BASE TEC-Tec'!B55 -> ossature et platelage bois | D70: 0 | E70: ='BASE TEC-Tec'!F55 -> 0 | F70: =F$67 -> % planchers + coursives ext. | G70: 1 | H70: 0 | I70: 0 | J70: 0 | K70: 0
C71: ='BASE TEC-Tec'!B56 -> bois plein (CLT) | D71: 0 | E71: ='BASE TEC-Tec'!F56 -> 0 | F71: =F$67 -> % planchers + coursives ext. | G71: 1 | H71: 0 | I71: 0 | J71: 0 | K71: 0
B73: =UPPER('BASE TEC-Tec'!B57) -> OSSATURE PRINCIPALE
B74: =IF(SUM(D74:D79)>1,"Erreur : total > 100%","") ->  | C74: ='BASE TEC-Tec'!B58 -> voiles de refend en béton | D74: 0 | E74: ='BASE TEC-Tec'!F58 -> 0 | F74: % de la surface de planchers | G74: 1 | H74: 0 | I74: 0 | J74: 0 | K74: 0
C75: ='BASE TEC-Tec'!B59 -> murs en matériaux locaux | D75: 0 | E75: ='BASE TEC-Tec'!F59 -> 0 | F75: =F$74 -> % de la surface de planchers | G75: 1 | H75: 0 | I75: 0 | J75: 0 | K75: 0
C76: ='BASE TEC-Tec'!B60 -> ossature béton | D76: 0 | E76: ='BASE TEC-Tec'!F60 -> 0 | F76: =F$74 -> % de la surface de planchers | G76: 1 | H76: 0 | I76: 0 | J76: 0 | K76: 0
C77: ='BASE TEC-Tec'!B61 -> ossature métal | D77: 0 | E77: ='BASE TEC-Tec'!F61 -> 0 | F77: =F$74 -> % de la surface de planchers | G77: 1 | H77: 0 | I77: 0 | J77: 0 | K77: 0
C78: ='BASE TEC-Tec'!B62 -> ossature bois | D78: 0 | E78: ='BASE TEC-Tec'!F62 -> 0 | F78: =F$74 -> % de la surface de planchers | G78: 1 | H78: 0 | I78: 0 | J78: 0 | K78: 0
C79: ='BASE TEC-Tec'!B63 -> bois massif (CLT) | D79: 0 | E79: ='BASE TEC-Tec'!F63 -> 0 | F79: =F$74 -> % de la surface de planchers | G79: 1 | H79: 0 | I79: 0 | J79: 0 | K79: 0
B81: =UPPER('BASE TEC-Tec'!B64) -> REMPLISSAGE DE FAÇADE
B82: =IF(SUM(D82:D91)>1,"Attention : total > 100%","") ->  | C82: ='BASE TEC-Tec'!B65 -> voiles béton | D82: 0 | E82: ='BASE TEC-Tec'!F65 -> 0 | F82: % de la surface de façade | G82: 1 | H82: 0 | I82: 0 | J82: 0 | K82: 0
C83: ='BASE TEC-Tec'!B66 -> maçonnerie | D83: 0 | E83: ='BASE TEC-Tec'!F66 -> 0 | F83: =F$82 -> % de la surface de façade | G83: 1 | H83: 0 | I83: 0 | J83: 0 | K83: 0
C84: ='BASE TEC-Tec'!B67 -> métallique | D84: 0 | E84: ='BASE TEC-Tec'!F67 -> 0 | F84: % de la surface de façade | G84: 1 | H84: 0 | I84: 0 | J84: 0 | K84: 0
C85: ='BASE TEC-Tec'!B68 -> mur en terre | D85: 0 | E85: ='BASE TEC-Tec'!F68 -> 0 | F85: % de la surface de façade | G85: 1 | H85: 0 | I85: 0 | J85: 0 | K85: 0
C86: ='BASE TEC-Tec'!B69 -> ossature bois | D86: 0 | E86: ='BASE TEC-Tec'!F69 -> 0 | F86: % de la surface de façade | G86: 1 | H86: 0 | I86: 0 | J86: 0 | K86: 0
C87: ='BASE TEC-Tec'!B70 -> mur rideau acier et aluminium | D87: 0 | E87: ='BASE TEC-Tec'!F70 -> 0 | F87: % de la surface de façade | G87: 1 | H87: 0 | I87: 0 | J87: 0 | K87: 0
C88: ='BASE TEC-Tec'!B71 -> châssis acier vitré | D88: 0 | E88: ='BASE TEC-Tec'!F71 -> 0 | F88: % de la surface de façade | G88: 1 | H88: 0 | I88: 0 | J88: 0 | K88: 0
C89: ='BASE TEC-Tec'!B72 -> châssis aluminium vitré | D89: 0 | E89: ='BASE TEC-Tec'!F72 -> 0 | F89: % de la surface de façade | G89: 1 | H89: 0 | I89: 0 | J89: 0 | K89: 0
C90: ='BASE TEC-Tec'!B73 -> châssis PVC vitré | D90: 0 | E90: ='BASE TEC-Tec'!F73 -> 0 | F90: % de la surface de façade | G90: 1 | H90: 0 | I90: 0 | J90: 0 | K90: 0
C91: ='BASE TEC-Tec'!B74 -> châssis bois vitré | D91: 0 | E91: ='BASE TEC-Tec'!F74 -> 0 | F91: % de la surface de façade | G91: 1 | H91: 0 | I91: 0 | J91: 0 | K91: 0
B93: =UPPER('BASE TEC-Tec'!B75) -> REVÊTEMENT DE FAÇADE
B94: =IF(SUM(D94:D100)>1,"Erreur : total > 100%","") ->  | C94: ='BASE TEC-Tec'!B76 -> peinture | D94: 0 | E94: ='BASE TEC-Tec'!F76 -> 0 | F94: =F82 -> % de la surface de façade | G94: 1 | H94: 0 | I94: 0 | J94: 0 | K94: 0
C95: ='BASE TEC-Tec'!B77 -> enduit | D95: 0 | E95: ='BASE TEC-Tec'!F77 -> 0 | F95: =F$94 -> % de la surface de façade | G95: 1 | H95: 0 | I95: 0 | J95: 0 | K95: 0
B96: =IF(SUM(D94:D100)>SUM(D82:D86),"Erreur : total > % de façades opaques","") ->  | C96: ='BASE TEC-Tec'!B78 -> briquette ou pierre | D96: 0 | E96: ='BASE TEC-Tec'!F78 -> 0 | F96: % de la surface de façade | G96: 1 | H96: 0 | I96: 0 | J96: 0 | K96: 0
C97: ='BASE TEC-Tec'!B79 -> panneaux minéraux | D97: 0 | E97: ='BASE TEC-Tec'!F79 -> 0 | F97: % de la surface de façade | G97: 1 | H97: 0 | I97: 0 | J97: 0 | K97: 0
C98: ='BASE TEC-Tec'!B80 -> bardage acier | D98: 0 | E98: ='BASE TEC-Tec'!F80 -> 0 | F98: % de la surface de façade | G98: 1 | H98: 0 | I98: 0 | J98: 0 | K98: 0
C99: ='BASE TEC-Tec'!B81 -> bardage aluminium | D99: 0 | E99: ='BASE TEC-Tec'!F81 -> 0 | F99: % de la surface de façade | G99: 1 | H99: 0 | I99: 0 | J99: 0 | K99: 0
C100: ='BASE TEC-Tec'!B82 -> bardage bois | D100: 0 | E100: ='BASE TEC-Tec'!F82 -> 0 | F100: % de la surface de façade | G100: 1 | H100: 0 | I100: 0 | J100: 0 | K100: 0
B102: =UPPER('BASE TEC-Tec'!B83) -> PROTECTIONS SOLAIRES EXTÉRIEURES
B103: =IF(SUM(D103:D104)>1,"Erreur : total > 100%","") ->  | C103: ='BASE TEC-Tec'!B84 -> brise-soleil en toile ou en bois | D103: 0 | E103: ='BASE TEC-Tec'!F84 -> 0 | F103: =F$94 -> % de la surface de façade | G103: 1 | H103: 0 | I103: 0 | J103: 0 | K103: 0
C104: ='BASE TEC-Tec'!B85 -> brise-soleil en aluminium | D104: 0 | E104: ='BASE TEC-Tec'!F85 -> 0 | F104: =F$94 -> % de la surface de façade | G104: 1 | H104: 0 | I104: 0 | J104: 0 | K104: 0
C105: ='BASE TEC-Tec'!B86 -> motorisation des brise-soleil | D105: - | E105: =IF($E$17*$E$18=0,"-","oui") -> - | F105: liste déroulante | G105: 1 | H105: - | I105: - | J105: - | K105: -
B106: =IF(SUM(D106:D107)>1,"Erreur : total > 100%","") ->  | C106: ='BASE TEC-Tec'!B91 -> casquette (et/ou joue) bois | D106: 0 | E106: ='BASE TEC-Tec'!F91 -> 0 | F106: =F$94 -> % de la surface de façade | G106: 1 | H106: 0 | I106: 0 | J106: 0 | K106: 0
C107: ='BASE TEC-Tec'!B92 -> casquette (et/ou joue) métal | D107: 0 | E107: ='BASE TEC-Tec'!F92 -> 0 | F107: =F$94 -> % de la surface de façade | G107: 1 | H107: 0 | I107: 0 | J107: 0 | K107: 0
C108: ='BASE TEC-Tec'!B93 -> casquette (et/ou joue) béton | D108: 0 | E108: ='BASE TEC-Tec'!F93 -> 0.4 | F108: =F$94 -> % de la surface de façade | G108: 1 | H108: 0 | I108: 0 | J108: 0 | K108: 0
B110: =UPPER('BASE TEC-Tec'!B94) -> TOITURE
B111: Toiture terrasse | C111: ='BASE TEC-Tec'!B95 -> dalle béton | D111: 0 | E111: ='BASE TEC-Tec'!F95 -> 0 | F111: % de la surface de toiture | G111: 1 | H111: 0 | I111: 0 | J111: 0 | K111: 0
B112: =IF(SUM(D111:D112)>1,"Erreur : total > 100%","") ->  | C112: ='BASE TEC-Tec'!B96 -> plancher bois | D112: 0 | E112: ='BASE TEC-Tec'!F96 -> 0 | F112: =F$111 -> % de la surface de toiture | G112: 1 | H112: 0 | I112: 0 | J112: 0 | K112: 0
B114: Toiture en pente ou sur-toiture | C114: ='BASE TEC-Tec'!B97 -> charpente métallique | D114: 0 | E114: ='BASE TEC-Tec'!F97 -> 0 | F114: =F$111 -> % de la surface de toiture | G114: 1 | H114: 0 | I114: 0 | J114: 0 | K114: 0
B115: =IF(SUM(D114:D115)>1,"Erreur : total > 100%","") ->  | C115: ='BASE TEC-Tec'!B98 -> charpente bois | D115: 0 | E115: ='BASE TEC-Tec'!F98 -> 0 | F115: =F$111 -> % de la surface de toiture | G115: 1 | H115: 0 | I115: 0 | J115: 0 | K115: 0
B117: Couverture | C117: ='BASE TEC-Tec'!B99 -> revêtement d'étanchéité | D117: 0 | E117: ='BASE TEC-Tec'!F99 -> 0 | F117: =F$111 -> % de la surface de toiture | G117: 1 | H117: 0 | I117: 0 | J117: 0 | K117: 0
B118: =IF(SUM(D117:D119)>1,"Erreur : total > 100%","") ->  | C118: ='BASE TEC-Tec'!B100 -> couverte en tôle | D118: 0 | E118: ='BASE TEC-Tec'!F100 -> 0 | F118: =F$111 -> % de la surface de toiture | G118: 1 | H118: 0 | I118: 0 | J118: 0 | K118: 0
C119: ='BASE TEC-Tec'!B101 -> couverture biosourcée | D119: 0 | E119: ='BASE TEC-Tec'!F101 -> 0 | F119: =F$111 -> % de la surface de toiture | G119: 1 | H119: 0 | I119: 0 | J119: 0 | K119: 0
B121: =UPPER('BASE TEC-Tec'!B102) -> ISOLATION
B122: =IF(SUM(D123:D124)>1,"Erreur : total > 100%","") ->  | C122: ='BASE TEC-Tec'!B103 -> toiture | D122: - | E122: =IF($E$17*$E$18=0,"-",'BASE TEC-Tec'!D106) -> - | F122: liste déroulante | G122: 1 | H122: - | I122: - | J122: - | K122: -
C123: ='BASE TEC-Tec'!B109 -> façades avec isolant conventionnel | D123: 0 | E123: ='BASE TEC-Tec'!F109 -> 0 | F123: =F$94 -> % de la surface de façade | G123: 1 | H123: 0 | I123: 0 | J123: 0 | K123: 0
C124: ='BASE TEC-Tec'!B110 -> façades avec isolant biosourcé | D124: 0 | E124: ='BASE TEC-Tec'!F110 -> 0 | F124: =F$94 -> % de la surface de façade | G124: 1 | H124: 0 | I124: 0 | J124: 0 | K124: 0
B126: =UPPER('BASE TEC-Tec'!B111) -> HABILLAGES INTÉRIEURS
C127: ='BASE TEC-Tec'!B112 -> faux-plafond minéral | D127: 0 | E127: ='BASE TEC-Tec'!F112 -> 0 | F127: % de la surface utile | G127: 1 | H127: 0 | I127: 0 | J127: 0 | K127: 0
C128: ='BASE TEC-Tec'!B113 -> faux-plancher technique | D128: 0 | E128: ='BASE TEC-Tec'!F113 -> 0 | F128: =F$127 -> % de la surface utile | G128: 1 | H128: 0 | I128: 0 | J128: 0 | K128: 0
B130: =UPPER('BASE TEC-Tec'!B115) -> PRODUCTION LOCALE D'ENR
C131: ='BASE TEC-Tec'!B116 -> installation solaire thermique | D131: 0 | E131: ='BASE TEC-Tec'!F116 -> 0 | F131: ='BASE TEC-Tec'!D116 -> m² de panneaux | G131: 1 | H131: 0 | I131: 0 | J131: 0 | K131: 0
C132: ='BASE TEC-Tec'!B117 -> installation photovoltaïque sans batterie | D132: 0 | E132: ='BASE TEC-Tec'!F117 -> 0 | F132: ='BASE TEC-Tec'!D117 -> kWc | G132: 1 | H132: 0 | I132: 0 | J132: 0 | K132: 0
C133: ='BASE TEC-Tec'!B118 -> installation photovoltaïque avec batteries | D133: 0 | E133: ='BASE TEC-Tec'!F118 -> 0 | F133: ='BASE TEC-Tec'!D118 -> kWc | G133: 1 | H133: 0 | I133: 0 | J133: 0 | K133: 0
B135: =UPPER('BASE TEC-Tec'!B119) -> VARIATION D'ALBÉDO
B136: =IF(SUM(D136:D139)>1,"Erreur : total > 100%","") ->  | C136: ='BASE TEC-Tec'!B120 -> ton presque inchangé | D136: 0 | E136: ='BASE TEC-Tec'!F120 -> 0 | F136: % de la surface de la parcelle | G136: 1 | H136: 0 | I136: 0 | J136: 0 | K136: 0
C137: ='BASE TEC-Tec'!B121 -> fonçage (couleur foncée → noir) | D137: 0 | E137: ='BASE TEC-Tec'!F121 -> 0 | F137: =F$136 -> % de la surface de la parcelle | G137: 1 | H137: 0 | I137: 0 | J137: 0 | K137: 0
C138: ='BASE TEC-Tec'!B122 -> éclaircissement (couleur foncée → couleur moyenne) | D138: 0 | E138: ='BASE TEC-Tec'!F122 -> 0 | F138: =F$136 -> % de la surface de la parcelle | G138: 1 | H138: 0 | I138: 0 | J138: 0 | K138: 0
C139: ='BASE TEC-Tec'!B123 -> fort éclaircissement (couleur foncée → couleur très claire) | D139: 0 | E139: ='BASE TEC-Tec'!F123 -> 0 | F139: =F$136 -> % de la surface de la parcelle | G139: 1 | H139: 0 | I139: 0 | J139: 0 | K139: 0
B141: =UPPER('BASE TEC-Tec'!B124) -> INSTALLATION DE CHANTIER
C142: ='BASE TEC-Tec'!B125 -> organisation | D142: - | E142: =IF($E$17*$E$18=0,"-",'BASE TEC-Tec'!D127) -> - | F142: liste déroulante | G142: 1 | H142: - | I142: - | J142: - | K142: -
B144: ÉNERGIE | D144: =IF(D$17*D$18=0,0,'BASE TEC-Tec'!R297) -> 0 | E144: =IF(E$17*E$18=0,0,'BASE TEC-Tec'!S297) -> 0 | H144: 0 | I144: 0 | J144: 0 | K144: 0
B146: =UPPER('BASE TEC-Tec'!B134) -> RAFRAÎCHISSEMENT POUR LE CONFORT
C147: ='BASE TEC-Tec'!B136 -> performance de l'enveloppe et de son environnement | D147: - | E147: =IF(E17*E18=0,"-",'BASE TEC-Tec'!D138) -> - | F147: liste déroulante | H147: - | I147: - | J147: - | K147: -
C149: ='BASE TEC-Tec'!B135 -> zone en ventilation naturelle + brasseurs d'air | D149: 0 | E149: ='BASE TEC-Tec'!F135 -> 0 | F149: ='BASE TEC-Tec'!D135 -> m² | H149: 0 | I149: 0 | J149: 0 | K149: 0
C151: ='BASE TEC-Tec'!B142 -> zone en climatisation + ventilation naturelle + brasseurs d'air | D151: 0 | E151: ='BASE TEC-Tec'!F142 -> 0 | F151: ='BASE TEC-Tec'!D142 -> m² | H151: 0 | I151: 0 | J151: 0 | K151: 0
C152: ='BASE TEC-Tec'!B147 -> durée de fonctionnement de la climatisation | D152: - | E152: =IF(E17*E18=0,"-",'BASE TEC-Tec'!D151) -> - | F152: liste déroulante | H152: - | I152: - | J152: - | K152: -
C154: ='BASE TEC-Tec'!B153 -> zone en climatisation + brasseurs d'air | D154: 0 | E154: ='BASE TEC-Tec'!F153 -> 0 | F154: ='BASE TEC-Tec'!D153 -> m² | H154: 0 | I154: 0 | J154: 0 | K154: 0
C155: ='BASE TEC-Tec'!B158 -> durée de fonctionnement de la climatisation | D155: - | E155: =IF(E17*E18=0,"-",'BASE TEC-Tec'!D161) -> - | F155: liste déroulante | H155: - | I155: - | J155: - | K155: -
C157: ='BASE TEC-Tec'!B163 -> zone en climatisation seule (hors locaux techniques) | D157: 0 | E157: ='BASE TEC-Tec'!F163 -> 0 | F157: ='BASE TEC-Tec'!D163 -> m² | H157: 0 | I157: 0 | J157: 0 | K157: 0
C158: ='BASE TEC-Tec'!B168 -> durée de fonctionnement | D158: - | E158: =IF(E17*E18=0,"-",'BASE TEC-Tec'!D171) -> - | F158: liste déroulante | H158: - | I158: - | J158: - | K158: -
C160: ='BASE TEC-Tec'!B173 -> surface totale des quatre zones ci-dessus | D160: =D149+D151+D154+D157 -> 0 | E160: ='BASE TEC-Tec'!F173 -> 0 | F160: ='BASE TEC-Tec'!D173 -> m² | H160: 0 | I160: 0 | J160: 0 | K160: 0
C162: consommation électrique des zones | D162: =ROUND(D160*'BASE TEC-Tec'!E174/100,0)*100 -> 0 | E162: =ROUND(E160*'BASE TEC-Tec'!F174/100,0)*100 ->  | F162: ='BASE TEC-Tec'!D134 -> kWh / an | G162: 1 | H162: 0 | I162: 0 | J162: 0 | K162: 0
C163: consommation électrique unitaire | D163: =IF(D17=0,0,D162/D17) -> 0 | E163: =IF(E17=0,0,E162/E17) -> 0 | F163: kWh / m² utile / an | H163: 0 | I163: 0 | J163: 0 | K163: 0
C164: ='BASE TEC-Tec'!B176 -> puissance installée avec fluide HFC | D164: =IF(D17=0,"0",'BASE TEC-Tec'!E176) -> 0 | E164: =IF(E17=0,"0",'BASE TEC-Tec'!F176) -> 0 | F164: ='BASE TEC-Tec'!D176 -> kW frigo. | G164: 1 | H164: 0 | I164: 0 | J164: 0 | K164: 0
B166: =UPPER('BASE TEC-Tec'!B179) -> ÉCLAIRAGE INTÉRIEUR
C167: ='BASE TEC-Tec'!B180 -> proportion d'éclairement standard (vs surface de vente) | D167: 1 | E167: ='BASE TEC-Tec'!$F180 -> 1 | F167: % de la surface utile | H167: 1 | I167: 1 | J167: 1 | K167: 1
C168: ='BASE TEC-Tec'!B182 -> performance des équipements et optimisation d'installation | D168: - | E168: =IF(E17*E18=0,"-",'BASE TEC-Tec'!D184) -> - | F168: liste déroulante | H168: - | I168: - | J168: - | K168: -
C169: ='BASE TEC-Tec'!B187 -> plage de fonctionnement | D169: - | E169: =IF(E17*E18=0,"-",'BASE TEC-Tec'!D191) -> - | F169: liste déroulante | H169: - | I169: - | J169: - | K169: -
C170: consommation électrique | D170: =IF(OR(D168="-",D169="-"),0,ROUND(D17*'BASE TEC-Tec'!E193/100,0)*100) -> 0 | E170: =IF(OR(E168="-",E169="-"),0,ROUND(E17*'BASE TEC-Tec'!F193/100,0)*100) -> 0 | F170: ='BASE TEC-Tec'!D179 -> kWh / an | G170: 1 | H170: 0 | I170: 0 | J170: 0 | K170: 0
C171: consommation électrique unitaire | D171: =IF(D17=0,0,D170/D17) -> 0 | E171: =IF(E17=0,0,E170/E17) -> 0 | F171: kWh / m² utile / an | H171: 0 | I171: 0 | J171: 0 | K171: 0
B173: =UPPER('BASE TEC-Tec'!B194) -> ÉCLAIRAGE EXTÉRIEUR
C174: ='BASE TEC-Tec'!B195 -> gestion de l'éclairage | D174: - | E174: =IF(E17*E18=0,"-",'BASE TEC-Tec'!D198) -> - | F174: liste déroulante | H174: - | I174: - | J174: - | K174: -
C175: ='BASE TEC-Tec'!B201 -> zones éclairées | D175: - | E175: =IF(E17*E18=0,"-",'BASE TEC-Tec'!D204) -> - | F175: liste déroulante | H175: - | I175: - | J175: - | K175: -
C176: consommation électrique | D176: =IF(OR(D174="-",D175="-"),0,ROUND(D17*'BASE TEC-Tec'!E206/100,0)*100) -> 0 | E176: =IF(OR(E174="-",E175="-"),0,ROUND(E17*'BASE TEC-Tec'!F206/100,0)*100) -> 0 | F176: ='BASE TEC-Tec'!D194 -> kWh / an | G176: 1 | H176: 0 | I176: 0 | J176: 0 | K176: 0
C177: consommation électrique unitaire | D177: =IF(D17=0,0,D176/D17) -> 0 | E177: =IF(E17=0,0,E176/E17) -> 0 | F177: kWh / m² utile / an | H177: 0 | I177: 0 | J177: 0 | K177: 0
B179: =UPPER('BASE TEC-Tec'!B207) -> TRAITEMENT D'AIR TECHNIQUE
C180: ='BASE TEC-Tec'!B208 -> locaux techniques climatisés | D180: 0 | E180: ='BASE TEC-Tec'!$H208 -> 0 | F180: ='BASE TEC-Tec'!D208 -> pièce | H180: 0 | I180: 0 | J180: 0 | K180: 0
C181: ='BASE TEC-Tec'!B212 -> installation VMC des sanitaires | D181: - | E181: =IF(E17*E18=0,"-",'BASE TEC-Tec'!D215) -> - | F181: liste déroulante | H181: - | I181: - | J181: - | K181: -
C182: consommation électrique | D182: =ROUND(('BASE TEC-Tec'!E208*'BASE TEC-Tec'!E209+D17*'BASE TEC-Tec'!E212*'BASE TEC-Tec'!E216)/100,0)*100 -> 0 | E182: =ROUND(('BASE TEC-Tec'!F208*'BASE TEC-Tec'!F209+E17*'BASE TEC-Tec'!F212*'BASE TEC-Tec'!F216)/100,0)*100 -> 0 | F182: ='BASE TEC-Tec'!D207 -> kWh / an | G182: 1 | H182: 0 | I182: 0 | J182: 0 | K182: 0
C183: consommation électrique unitaire | D183: =IF(D17=0,0,D182/D17) -> 0 | E183: =IF(E17=0,0,E182/E17) -> 0 | F183: kWh / m² utile / an | H183: 0 | I183: 0 | J183: 0 | K183: 0
B185: =UPPER('BASE TEC-Tec'!B217) -> FORCES MOTRICES
C186: ='BASE TEC-Tec'!B218 -> ascenseurs ou monte-charges | D186: 0 | E186: ='BASE TEC-Tec'!$H218 -> 0 | F186: ='BASE TEC-Tec'!D218 -> u | H186: 0 | I186: 0 | J186: 0 | K186: 0
C187: consommation électrique | D187: =ROUND('BASE TEC-Tec'!E218*'BASE TEC-Tec'!E219/100,0)*100 -> 0 | E187: =ROUND('BASE TEC-Tec'!F218*'BASE TEC-Tec'!F219/100,0)*100 -> 0 | F187: ='BASE TEC-Tec'!D217 -> kWh / an | G187: 1 | H187: 0 | I187: 0 | J187: 0 | K187: 0
B189: =UPPER('BASE TEC-Tec'!B220) -> CUISINE
C190: ='BASE TEC-Tec'!B223 -> type de cuisine | D190: - | E190: =IF(E17*E18=0,"-",'BASE TEC-Tec'!D226) -> - | F190: liste déroulante | H190: - | I190: - | J190: - | K190: -
C191: ='BASE TEC-Tec'!B230 -> eau chaude pour la cuisine | D191: - | E191: =IF(E17*E18=0,"-",'BASE TEC-Tec'!D233) -> - | F191: liste déroulante | H191: - | I191: - | J191: - | K191: -
C192: ='BASE TEC-Tec'!B237 -> fréquentation (dimensionnement) | D192: 0 | E192: ='BASE TEC-Tec'!$H237 -> 0 | F192: ='BASE TEC-Tec'!D237 -> couverts / jour | H192: 0 | I192: 0 | J192: 0 | K192: 0
C193: consommation de gaz | D193: =IF(D190="-",0,ROUND(D17*'BASE TEC-Tec'!E238/100,0)*100) -> 0 | E193: =IF(E190="-",0,ROUND(E17*'BASE TEC-Tec'!F238/100,0)*100) -> 0 | F193: ='BASE TEC-Tec'!D221 -> kWh / an | G193: 1 | H193: 0 | I193: 0 | J193: 0 | K193: 0
C194: consommation électrique | D194: =IF(D190="-",0,ROUND(D17*'BASE TEC-Tec'!E239/100,0)*100) -> 0 | E194: =IF(E190="-",0,ROUND(E17*'BASE TEC-Tec'!F239/100,0)*100) -> 0 | F194: ='BASE TEC-Tec'!D222 -> kWh / an | G194: 1 | H194: 0 | I194: 0 | J194: 0 | K194: 0
B196: =UPPER('BASE TEC-Tec'!B240) -> PRISES DE COURANT
C197: gestion des PC permanentes | D197: - | E197: =IF(E17*E18=0,"-",'BASE TEC-Tec'!D242) -> - | F197: liste déroulante | H197: - | I197: - | J197: - | K197: -
C198: conso. électrique des PC permanentes | D198: =IF(D197="-",0,ROUND(D17*'BASE TEC-Tec'!E240*'BASE TEC-Tec'!E245/100,0)*100) -> 0 | E198: =IF(E197="-",0,ROUND(E17*'BASE TEC-Tec'!F240*'BASE TEC-Tec'!F245/100,0)*100) -> 0 | F198: ='BASE TEC-Tec'!D244 -> kWh / an | G198: 1 | H198: 0 | I198: 0 | J198: 0 | K198: 0
C199: matériel de bureautique | D199: - | E199: =IF(E17*E18=0,"-",'BASE TEC-Tec'!D248) -> - | F199: liste déroulante | H199: - | I199: - | J199: - | K199: -
C200: conso. électrique des PC intermittentes | D200: =IF(D199="-",0,ROUND(D17*'BASE TEC-Tec'!E246*'BASE TEC-Tec'!E251/100,0)*100) -> 0 | E200: =IF(E199="-",0,ROUND(E17*'BASE TEC-Tec'!F246*'BASE TEC-Tec'!F251/100,0)*100) -> 0 | F200: ='BASE TEC-Tec'!D250 -> kWh / an | G200: 1 | H200: 0 | I200: 0 | J200: 0 | K200: 0
C201: consommation électrique unitaire | D201: =IF(D17=0,0,(D198+D200)/D17) -> 0 | E201: =IF(E17=0,0,(E198+E200)/E17) -> 0 | F201: kWh / m² utile / an | H201: 0 | I201: 0 | J201: 0 | K201: 0
B203: =UPPER('BASE TEC-Tec'!B252) -> EAU CHAUDE SANITAIRE
C204: type | D204: - | E204: =IF(E17*E18=0,"-",'BASE TEC-Tec'!D259) -> - | F204: liste déroulante | H204: - | I204: - | J204: - | K204: -
C205: consommation électrique | D205: =IF(D204="-",0,ROUND(D17*'BASE TEC-Tec'!E253/100,0)*100) -> 0 | E205: =IF(E204="-",0,ROUND(E17*'BASE TEC-Tec'!F253/100,0)*100) -> 0 | F205: ='BASE TEC-Tec'!D252 -> kWh électrique / an | G205: 1 | H205: 0 | I205: 0 | J205: 0 | K205: 0
B207: =UPPER('BASE TEC-Tec'!B261) -> FROID COMMERCIAL
C208: ='BASE TEC-Tec'!B262 -> surface de chambres froides positives | D208: 0 | E208: ='BASE TEC-Tec'!F262 -> 0 | F208: ='BASE TEC-Tec'!D262 -> m² | H208: 0 | I208: 0 | J208: 0 | K208: 0
C209: ='BASE TEC-Tec'!B263 -> surface de chambres froides négatives | D209: 0 | E209: ='BASE TEC-Tec'!F263 -> 0 | F209: ='BASE TEC-Tec'!D263 -> m² | H209: 0 | I209: 0 | J209: 0 | K209: 0
C210: ='BASE TEC-Tec'!B264 -> performance des systèmes | D210: - | E210: =IF(E2*E3=0,"-",'BASE TEC-Tec'!D267) -> - | F210: liste déroulante | H210: - | I210: - | J210: - | K210: -
C211: ='BASE TEC-Tec'!B273 -> meubles frigorifiques de vente | D211: 0 | E211: ='BASE TEC-Tec'!F273 -> 0 | F211: ='BASE TEC-Tec'!D273 -> mL | H211: 0 | I211: 0 | J211: 0 | K211: 0
C212: ='BASE TEC-Tec'!B274 -> performance des systèmes | D212: - | E212: =IF(E2*E3=0,"-",'BASE TEC-Tec'!D277) -> - | F212: liste déroulante | H212: - | I212: - | J212: - | K212: -
C213: consommation électrique | D213: =IF(D208+D211=0,0,ROUND('BASE TEC-Tec'!E279/100,0)*100) -> 0 | E213: =IF(E208+E211=0,0,ROUND('BASE TEC-Tec'!F279/100,0)*100) -> 0 | F213: kWh / an | G213: 1 | H213: 0 | I213: 0 | J213: 0 | K213: 0
B215: =UPPER("Indications de calcul") -> INDICATIONS DE CALCUL
C216: consommation électrique totale | D216: =IF(D17*D18=0,0,'BASE TEC-Tec'!E280) -> 0 | E216: =IF(E17*E18=0,0,'BASE TEC-Tec'!F280) -> 0 | F216: kWh / an | H216: 0 | I216: 0 | J216: 0 | K216: 0
C217: consommation électrique unitaire | D217: =IF(D17=0,0,'BASE TEC-Tec'!E280/D17) -> 0 | E217: =IF(E17=0,0,'BASE TEC-Tec'!F280/E17) -> 0 | F217: kWh / m² utile / an | H217: 0 | I217: 0 | J217: 0 | K217: 0
B219: =UPPER('BASE TEC-Tec'!B281) -> PRODUCTION D'ÉLECTRICITÉ
C220: ='BASE TEC-Tec'!B282 -> en phase avec l'ensoleillement | D220: =IF(D17=0,0,'BASE TEC-Tec'!E282) -> 0 | E220: =IF(E17=0,0,'BASE TEC-Tec'!F282) -> 0 | F220: ='BASE TEC-Tec'!D282 -> kWh / an | G220: 1 | H220: 0 | I220: 0 | J220: 0 | K220: 0
C221: ='BASE TEC-Tec'!B284 -> lissée grâce aux batteries | D221: =IF(D17=0,0,'BASE TEC-Tec'!E284) -> 0 | E221: =IF(E17=0,0,'BASE TEC-Tec'!F284) -> 0 | F221: ='BASE TEC-Tec'!D284 -> kWh / an | G221: 1 | H221: 0 | I221: 0 | J221: 0 | K221: 0
C222: production électrique unitaire | D222: =IF(D17=0,0,'BASE TEC-Tec'!E281/D17) -> 0 | E222: =IF(E17=0,0,'BASE TEC-Tec'!F281/E17) -> 0 | F222: kWh / m² utile / an | H222: 0 | I222: 0 | J222: 0 | K222: 0
B224: =UPPER('BASE TEC-Tec'!B286) -> COMMISSIONNEMENT ET EXPLOITATION
C225: ='BASE TEC-Tec'!B287 -> commissionnement | D225: - | E225: =IF(E17*E18=0,"-",'BASE TEC-Tec'!D290) -> - | F225: liste déroulante | G225: 1 | H225: - | I225: - | J225: - | K225: -
C226: ='BASE TEC-Tec'!B291 -> gestion de l'exploitation | D226: - | E226: =IF(E17*E18=0,"-",'BASE TEC-Tec'!D294) -> - | F226: liste déroulante | G226: 1 | H226: - | I226: - | J226: - | K226: -
B228: DÉPLACEMENTS | D228: =IF(E$17*E$18=0,0,'BASE TEC-Tec'!R367) -> 0 | E228: =IF(E$17*E$18=0,0,'BASE TEC-Tec'!S367) -> 0 | H228: 0 | I228: 0 | J228: 0 | K228: 0
C230: effectif quotidien | D230: 0 | E230: =IF(E$17*E$18=0,0,'BASE TEC-Tec'!$F299) -> 0 | F230: nombre / jour | G230: 1 | H230: 0 | I230: 0 | J230: 0 | K230: 0
B232: =UPPER('BASE TEC-Tec'!B300) -> PERSONNEL
C233: ='BASE TEC-Tec'!B301 -> distance moyenne depuis le domicile | D233: 0 | E233: =IF(E$17*E$18=0,0,'BASE TEC-Tec'!$H301) -> 0 | F233: ='BASE TEC-Tec'!D301 -> km aller | G233: 1 | H233: 0 | I233: 0 | J233: 0 | K233: 0
C234: ='BASE TEC-Tec'!B302 -> taux de télétravail (ou de tiers-lieu local) | D234: 0 | E234: =IF(E$17*E$18=0,0,'BASE TEC-Tec'!$H302) -> 0 | F234: ='BASE TEC-Tec'!D302 -> % hebdo. | G234: 1 | H234: 0 | I234: 0 | J234: 0 | K234: 0
C235: ='BASE TEC-Tec'!B303 -> disponibilité de transports en commun | D235: - | E235: =IF(E17*E18=0,"-",'BASE TEC-Tec'!D307) -> - | F235: liste déroulante | G235: 1 | H235: - | I235: - | J235: - | K235: -
C236: ='BASE TEC-Tec'!B309 -> emplacements de voitures électriques | D236: - | E236: =IF(E17*E18=0,"-",'BASE TEC-Tec'!D311) -> - | F236: liste déroulante | G236: 1 | H236: - | I236: - | J236: - | K236: -
C237: ='BASE TEC-Tec'!B315 -> emplacements pour deux-roues | D237: - | E237: =IF(E17*E18=0,"-",'BASE TEC-Tec'!D318) -> - | F237: liste déroulante | G237: 1 | H237: - | I237: - | J237: - | K237: -
B239: =UPPER('BASE TEC-Tec'!B321) -> ÉLÈVES OU ÉTUDIANTS
C240: ='BASE TEC-Tec'!B322 -> distance moyenne depuis le domicile | D240: 0 | E240: =IF(E$17*E$18=0,0,'BASE TEC-Tec'!$H322) -> 0 | F240: ='BASE TEC-Tec'!D322 -> km aller | G240: 1 | H240: 0 | I240: 0 | J240: 0 | K240: 0
C241: ='BASE TEC-Tec'!B323 -> taux de télétravail (ou de tiers-lieu local) | D241: 0 | E241: =IF(E$17*E$18=0,0,'BASE TEC-Tec'!$H323) -> 0 | F241: ='BASE TEC-Tec'!D323 -> % hebdo. | G241: 1 | H241: 0 | I241: 0 | J241: 0 | K241: 0
C242: ='BASE TEC-Tec'!B324 -> disponibilité de transports en commun | D242: - | E242: =IF(E17*E18=0,"-",'BASE TEC-Tec'!D328) -> - | F242: liste déroulante | G242: 1 | H242: - | I242: - | J242: - | K242: -
C243: ='BASE TEC-Tec'!B330 -> emplacements de voitures électriques | D243: - | E243: =IF(E17*E18=0,"-",'BASE TEC-Tec'!D332) -> - | F243: liste déroulante | G243: 1 | H243: - | I243: - | J243: - | K243: -
C244: ='BASE TEC-Tec'!B336 -> emplacements pour deux-roues | D244: - | E244: =IF(E17*E18=0,"-",'BASE TEC-Tec'!D339) -> - | F244: liste déroulante | G244: 1 | H244: - | I244: - | J244: - | K244: -
B246: =UPPER('BASE TEC-Tec'!B342) -> VISITEURS
C247: ='BASE TEC-Tec'!B343 -> distance moyenne du trajet | D247: 0 | E247: =IF(E$17*E$18=0,0,'BASE TEC-Tec'!$H343) -> 0 | F247: ='BASE TEC-Tec'!D343 -> km aller | G247: 1 | H247: 0 | I247: 0 | J247: 0 | K247: 0
C248: ='BASE TEC-Tec'!B344 -> disponibilité de transports en commun | D248: - | E248: =IF(E17*E18=0,"-",'BASE TEC-Tec'!D348) -> - | F248: liste déroulante | G248: 1 | H248: - | I248: - | J248: - | K248: -
C249: ='BASE TEC-Tec'!B350 -> emplacements de voitures électriques | D249: - | E249: =IF(E17*E18=0,"-",'BASE TEC-Tec'!D352) -> - | F249: liste déroulante | G249: 1 | H249: - | I249: - | J249: - | K249: -
C250: ='BASE TEC-Tec'!B356 -> emplacements pour deux-roues | D250: - | E250: =IF(E17*E18=0,"-",'BASE TEC-Tec'!D359) -> - | F250: liste déroulante | G250: 1 | H250: - | I250: - | J250: - | K250: -
B252: AUTRES SERVICES | D252: =IF(E$17*E$18=0,0,'BASE TEC-Tec'!R394) -> 0 | E252: =IF(E$17*E$18=0,0,'BASE TEC-Tec'!S394) -> 0 | H252: 0 | I252: 0 | J252: 0 | K252: 0
B254: =UPPER('BASE TEC-Tec'!B369) -> RESTAURATION DU MIDI
C255: effectif quotidien le midi | D255: 0 | E255: =IF(E$17*E$18=0,0,'BASE TEC-Tec'!$H369) -> 0 | F255: ='BASE TEC-Tec'!D369 -> repas / jour | H255: 0 | I255: 0 | J255: 0 | K255: 0
B257: =IF(SUM(D257:D262)>1,"Erreur : total > 100%",IF(D262<0,"Erreur : valeur négative","")) ->  | C257: ='BASE TEC-Tec'!B370 -> apportée du domicile | D257: 0 | E257: =IF(E$17*E$18=0,0,'BASE TEC-Tec'!$H370) -> 0 | F257: ='BASE TEC-Tec'!D370 -> % des repas | G257: 1 | H257: 0 | I257: 0 | J257: 0 | K257: 0
C258: ='BASE TEC-Tec'!B371 -> livrée individuellement | D258: 0 | E258: =IF(E$17*E$18=0,0,'BASE TEC-Tec'!$H371) -> 0 | F258: ='BASE TEC-Tec'!D371 -> % des repas | G258: 1 | H258: 0 | I258: 0 | J258: 0 | K258: 0
C259: ='BASE TEC-Tec'!B372 -> de proximité à pieds | D259: 0 | E259: =IF(E$17*E$18=0,0,'BASE TEC-Tec'!$H372) -> 0 | F259: ='BASE TEC-Tec'!D372 -> % des repas | G259: 1 | H259: 0 | I259: 0 | J259: 0 | K259: 0
... 43 more rows

Sheet BASE TEC-Tec (hidden)
A1: TEC-Tec carbone
A2: Poste | B2: Item | C2: n° | D2: Quantités | J2: Facteur d'émission | L2: Émissions de GES (tCO2e ou tCO2e/an) | P2: Pondération | R2: Notation
D3: Unité | E3: ='USER TEC-Tec'!C3 -> Projet | F3: Par défaut | G3: favorable | H3: défaut | I3: défavorable | J3: Unité | K3: Valeur | L3: =E3 -> Projet | M3: =G3 -> favorable | N3: =H3 -> défaut | O3: =I3 -> défavorable | P3: théorique | Q3: retenue | R3: =L3 -> Projet | S3: =H3 -> défaut | T3: Source FE
A4: Données générales
B5: type de bâtiment | D5: liste | E5: ='USER TEC-Tec'!D16 -> - | F5: ='USER TEC-Tec'!E16 -> -
B6: surface utile | C6: SU | D6: m² utile | E6: ='USER TEC-Tec'!D17 -> 0 | F6: ='USER TEC-Tec'!E17 -> 0 | G6: =$E6 -> 0 | H6: 0 | I6: 0
B7: surface de la parcelle | C7: SF | D7: m² de foncier | E7: ='USER TEC-Tec'!D18 -> 0 | F7: ='USER TEC-Tec'!E18 -> 0 | G7: 0 | H7: 0 | I7: 0
B8: Jardins | C8: SEV | D8: m² | E8: ='USER TEC-Tec'!D20 -> 0 | F8: =H8 -> 0 | G8: =G7*0.9-G15 -> 0 | H8: =(G8+2*I8)/3 -> 0 | I8: 0
B9: Parking extérieur véhicules | C9: SPk | D9: m² | E9: ='USER TEC-Tec'!D21 -> 0 | F9: 0 | G9: =G7*0.05 -> 0 | H9: 0 | I9: =(I7-I8-I15)*0.8 -> 0
B10: Cheminement extérieur piéton | C10: SCP | D10: m² | E10: ='USER TEC-Tec'!D22 -> 0 | F10: 0 | G10: =G7*0.05 -> 0 | H10: 0 | I10: =I9/4 -> 0
B11: Planchers (hors sous-sols) | C11: SdP | D11: m² | E11: ='USER TEC-Tec'!D23 -> 0 | F11: 0 | G11: =G12+G6 -> 0 | H11: 0 | I11: =I12+I6*1.3 -> 0
B12: Sous-sols | C12: SSL | D12: m² | E12: ='USER TEC-Tec'!D24 -> 0 | F12: 0 | G12: 0 | H12: 0 | I12: =I6/2 -> 0
B13: Façades | C13: SFa | D13: m² | E13: ='USER TEC-Tec'!D25 -> 0 | F13: 0 | G13: =G6*0.7 -> 0 | H13: 0 | I13: =I6*1.5 -> 0
B14: Coursives extérieures | C14: SC | D14: m² | E14: ='USER TEC-Tec'!D26 -> 0 | F14: 0 | G14: =G6*0.3 -> 0 | H14: 0 | I14: 0
B15: Toitures | C15: ST | D15: m² | E15: ='USER TEC-Tec'!D27 -> 0 | F15: 0 | G15: =MIN(G7*0.3,G6) -> 0 | H15: 0 | I15: =MIN(I6,I7) -> 0
B16: Rapport SU/SdP | D16: [-] | E16: ='USER TEC-Tec'!D29 -> 0 | F16: =F6/F11 ->  | G16: =G6/G11 ->  | H16: =H6/H11 ->  | I16: =I6/I11 -> 
B17: Indice de compacité | D17: [-] | E17: ='USER TEC-Tec'!D30 -> 0 | F17: =H17 ->  | G17: =G13/G11 ->  | H17: =H13/H11 ->  | I17: =I13/I11 -> 
A18: Construction | P18: 25 | T18: hyp d'amortissement relatif / usages
B19: Conception | C19: 1 | L19: =SUM(L20:L21) -> 0 | M19: =SUM(M20:M21) -> 0 | N19: =SUM(N20:N21) -> 0 | O19: =SUM(O20:O21) -> 0 | P19: =(O19-M19)/$E$6*200/$P$18 ->  | Q19: 0.3 | R19: =IF(L19=0,Q19,IF(L19>O19,0,IF(L19<M19,Q19,(1-(L19-$M19)/($O19-$M19))*$Q19))) -> 0.3 | S19: =(1-(N19-$M19)/($O19-$M19))*$Q19 -> 
B20: trajets entre La Réunion et la métropole | D20: =IF(E20>=2,"allers-retours","aller-retour") -> aller-retour | E20: ='USER TEC-Tec'!D35 -> 0 | F20: =IF(F6*F7=0,0,H20) -> 0 | G20: 0 | H20: =ROUND((G20+2*I20)/3,0) -> 0 | I20: =2*I6/1000 -> 0 | J20: kg CO2e / ARM | K20: 4000 | L20: =E20*$K20*'USER TEC-Tec'!G35/1000 -> 0 | M20: =G20*$K20/1000 -> 0 | N20: =H20*$K20/1000 -> 0 | O20: =I20*$K20/1000 -> 0 | T20: BC V8.1 arrondi
B21: autres | D21: kg CO2e | L21: =E11*0.03 -> 0 | M21: =G11*0.03 -> 0 | N21: =H11*0.03 -> 0 | O21: =I11*0.03 -> 0
B22: Changement d'affectation des sols | C22: 2 | L22: =L23 -> 0 | M22: =M23 -> 0 | N22: =N23 -> 0 | O22: =O23 -> 0 | P22: =(O22-M22)/$E$6*200/$P$18 ->  | Q22: 0.5 | R22: =IF(L22>O22,0,IF(L22<M22,Q22,(1-(L22-$M22)/($O22-$M22))*$Q22)) ->  | S22: =(1-(N22-$M22)/($O22-$M22))*$Q22 -> 
B23: artificialisation nette | D23: m² | E23: ='USER TEC-Tec'!D38 -> 0 | F23: =IF(F6*F7=0,0,H23) -> 0 | G23: =-G7/2 -> 0 | H23: =(G23+2*I23)/3 -> 0 | I23: =I7 -> 0 | J23: kgCO2e / m² | K23: 20 | L23: =E23*$K23*'USER TEC-Tec'!G38/1000 -> 0 | M23: =G23*$K23/1000 -> 0 | N23: =H23*$K23/1000 -> 0 | O23: =I23*$K23/1000 -> 0
B24: Voirie et traitement paysager | C24: 3 | L24: =SUM(L25:L34) -> 0 | M24: =SUM(M25:M34) -> 0 | N24: =SUM(N25:N34) -> 0 | O24: =SUM(O25:O34) -> 0 | P24: =(O24-M24)/$E$6*200/$P$18 ->  | Q24: 0.7 | R24: =IF(SUM(L25:L33)=0,0,IF(L24>O24,0,IF(L24<M24,Q24,(1-(L24-$M24)/($O24-$M24))*$Q24))) -> 0 | S24: =(1-(N24-$M24)/($O24-$M24))*$Q24 -> 
B25: végétalisation (toiture végétalisée inclue) | D25: SEV | E25: =E8 -> 0 | F25: =IF(F6*F7=0,0,H25) -> 0 | G25: =G8 -> 0 | H25: =(G25+2*I25)/3 -> 0 | I25: =I8 -> 0 | J25: kgCO2e / m² | K25: -10 | L25: =E25*$K25*'USER TEC-Tec'!G41/1000 -> 0 | M25: =G25*$K25/1000 -> 0 | N25: =H25*$K25/1000 -> 0 | O25: =I25*$K25/1000 -> 0 | T25: hyp. masse de plantes
B26: enrobé neuf | D26: % SPk | E26: ='USER TEC-Tec'!D43 -> 0 | F26: =IF(F6*F7=0,0,H26) -> 0 | G26: 0 | H26: 0 | I26: 0 | J26: kgCO2e / m² | K26: 60 | L26: =E26*E$9*$K26*'USER TEC-Tec'!G43/1000 -> 0 | M26: =G26*G$9*$K26/1000 -> 0 | N26: 0 | O26: 0 | T26: ép. 6 cm sur plateforme en grave non traitée et grave bitume
B27: dallage en béton | D27: % SPk | E27: ='USER TEC-Tec'!D44 -> 0 | F27: =IF(F6*F7=0,0,H27) -> 0 | G27: 0 | H27: 0.6666666667 | I27: 1 | J27: kgCO2e / m² | K27: 60 | L27: =E27*E$9*$K27*'USER TEC-Tec'!G44/1000 -> 0 | M27: 0 | N27: 0 | O27: 0 | T27: ép. 15 cm sur plateforme en grave non traitée
B28: pavage béton enherbé | D28: % SPk | E28: ='USER TEC-Tec'!D45 -> 0 | F28: =IF(F6*F7=0,0,H28) -> 0 | G28: 1 | H28: 0.3333333333 | I28: 0 | J28: kgCO2e / m² | K28: =30-5 -> 25 | L28: =E28*E$9*$K28*'USER TEC-Tec'!G45/1000 -> 0 | M28: 0 | N28: 0 | O28: 0 | T28: pavé béton et végétalisation
B29: enrobé neuf | D29: % de SCP | E29: ='USER TEC-Tec'!D47 -> 0 | F29: =IF(F6*F7=0,0,H29) -> 0 | G29: 0 | H29: 0 | I29: 0 | J29: kgCO2e / m² | K29: 40 | L29: =E29*E$10*$K29*'USER TEC-Tec'!G47/1000 -> 0 | M29: =G29*G$10*$K29/1000 -> 0 | N29: 0 | O29: 0 | T29: ép. 6 cm sur plateforme en grave non traitée
B30: dallage en béton | D30: % de SCP | E30: ='USER TEC-Tec'!D48 -> 0 | F30: =IF(F6*F7=0,0,H30) -> 0 | G30: 0 | H30: 0.6666666667 | I30: 1 | J30: kgCO2e / m² | K30: 50 | L30: =E30*E$10*$K30*'USER TEC-Tec'!G48/1000 -> 0 | M30: 0 | N30: 0 | O30: 0 | T30: ép. 12 cm sur plateforme en grave non traitée
B31: matériau perméable | D31: % de SCP | E31: ='USER TEC-Tec'!D49 -> 0 | F31: =IF(F6*F7=0,0,H31) -> 0 | G31: 1 | H31: 0.3333333333 | I31: 0 | J31: kgCO2e / m² | K31: 20 | L31: =E31*E$10*$K31*'USER TEC-Tec'!G49/1000 -> 0 | M31: 0 | N31: 0 | O31: 0 | T31: grave non traitée sur plateforme
B32: murets maçonnés | D32: m² | E32: ='USER TEC-Tec'!D51 -> 0 | F32: =H32 -> 0 | G32: 0 | H32: 0 | I32: =I6/10 -> 0 | J32: kgCO2e / m² | K32: 200 | L32: =E32*$K32*'USER TEC-Tec'!G51/1000 -> 0 | M32: =G32*$K32/1000 -> 0 | N32: 0 | O32: 0 | T32: ép. 30 cm pour partie encastré
B33: mur de soutènement | D33: m² | E33: ='USER TEC-Tec'!D52 -> 0 | F33: =H33 -> 0 | G33: 0 | H33: 0 | I33: =I6/10 -> 0 | J33: kgCO2e / m² | K33: 40 | L33: =E33*$K33*'USER TEC-Tec'!G52/1000 -> 0 | M33: 0 | N33: 0 | O33: 0
B34: autres | D34: kg CO2e | L34: =E6*0.03 -> 0 | M34: =G6*0.03 -> 0 | N34: =H6*0.03 -> 0 | O34: =I6*0.03 -> 0
B35: taux d'imperméabilisation | D35: % de SF | E35: =((E26+E27)*E9+E15)/E7 ->  | F35: =H35 -> 0.6666666667 | G35: 0 | H35: =(G35+2*I35)/3 -> 0.6666666667 | I35: 1 | J35: pour information
B36: Fondations | C36: 4 | L36: =SUM(L37:L47) -> 0 | M36: =SUM(M37:M47) -> 0 | N36: =SUM(N37:N47) ->  | O36: =SUM(O37:O47) -> 0 | P36: =(O36-M36)/$E$6*200/$P$18 ->  | Q36: 0.8 | R36: =IF(L36=0,0,IF(L36>O36,0,IF(L36<M36,Q36,(1-(L36-$M36)/($O36-$M36))*$Q36))) -> 0 | S36: =(1-(N36-$M36)/($O36-$M36))*$Q36 -> 
B37: terrassements généraux | D37: m³ | E37: =E12*3 -> 0 | F37: =H37 -> 0 | G37: =G12*3 -> 0 | H37: =H12*3 -> 0 | I37: =I12*3 -> 0 | J37: kg CO2e / m³ | K37: 10 | L37: =E37*$K37/1000 -> 0 | M37: =G37*$K37/1000 -> 0 | N37: =H37*$K37/1000 -> 0 | O37: =I37*$K37/1000 -> 0 | T37: prof. de 3 m par niveau de sous-sol
B38: nivellement dans la roche | D38: m³ | E38: =E15*E39 ->  | F38: =F15*F39 ->  | G38: =G15*G39 -> 0 | H38: =H15*H39 ->  | I38: =I15*I39 -> 0 | J38: kg CO2e / m³ | K38: 10 | L38: =IF(E39="aucun des 3","",E38*$K38*'USER TEC-Tec'!G55*E39/1000) ->  | M38: =G38*$K38*G39/1000 -> 0 | N38: =H38*$K38*H39/1000 ->  | O38: =I38*$K38*I39/1000 -> 0 | T38: en plus des terrassements généraux
D39: ='USER TEC-Tec'!D55 -> 0 | E39: =IF(D39=D41,E41,IF(D39=D42,E42,IF(D39=D43,E43,"aucun des 3"))) -> aucun des 3 | F39: =IF('USER TEC-Tec'!E55=D41,F41,IF('USER TEC-Tec'!E55=D42,F42,IF('USER TEC-Tec'!E55=D43,F43,"aucun des 3"))) -> aucun des 3 | G39: =MIN(E41:E43) -> 0 | H39: =F39 -> aucun des 3 | I39: =MAX(E41:E43) -> 2
D40: -
D41: sans | E41: 0 | F41: =E41 -> 0
D42: moins d'un mètre | E42: =2/3 -> 0.6666666667 | F42: =E42 -> 0.6666666667
D43: environ deux mètres | E43: 2 | F43: =E43 -> 2
B44: pieux béton | D44: % de SU | E44: ='USER TEC-Tec'!D57 -> 0 | F44: =IF(F6*F7=0,0,H44) -> 0 | G44: 0 | H44: =(G44+2*I44)/3 -> 0 | I44: 0 | J44: kgCO2e / m² | K44: =1.2*30 -> 36 | L44: =E44*E$6*$K44*'USER TEC-Tec'!G55/1000 -> 0 | M44: =G44*G$6*$K44/1000 -> 0 | N44: 0 | O44: 0 | T44: ép. moy. 5 à 10 cm
B45: micropieux | D45: % de SU | E45: ='USER TEC-Tec'!D58 -> 0 | F45: =IF(F6*F7=0,0,H45) -> 0 | G45: 0 | H45: =(G45+2*I45)/3 -> 0 | I45: 0 | J45: kgCO2e / m² | K45: =1.2*20 -> 24 | L45: =E45*E$6*$K45*'USER TEC-Tec'!G57/1000 -> 0 | M45: 0 | N45: 0 | O45: 0 | T45: lg moy. 10 cm + ép. moy. 1 cm
B46: radier | D46: % de SU | E46: ='USER TEC-Tec'!D59 -> 0 | F46: =IF(F6*F7=0,0,H46) -> 0 | G46: 0 | H46: =(G46+2*I46)/3 -> 0.6666666667 | I46: 1 | J46: kgCO2e / m² | K46: =1.2*50 -> 60 | L46: =E46*E$6*$K46*'USER TEC-Tec'!G59/1000 -> 0 | M46: 0 | N46: 0 | O46: 0 | T46: ép. moy. 10 cm
B47: superficielles | D47: % de SU | E47: ='USER TEC-Tec'!D60 -> 0 | F47: =IF(F6*F7=0,0,H47) -> 0 | G47: 1 | H47: =(G47+2*I47)/3 -> 0.3333333333 | I47: 0 | J47: kgCO2e / m² | K47: =1.2*15 -> 18 | L47: =E47*E$6*$K47*'USER TEC-Tec'!G60/1000 -> 0 | M47: 0 | N47: 0 | O47: 0 | T47: ép. moy. 3 à 4 cm
B48: Infrastructure | C48: 5 | L48: =SUM(L49:L50) -> 0 | M48: =SUM(M49:M50) -> 0 | N48: =SUM(N49:N50) -> 0 | O48: =SUM(O49:O50) -> 0 | P48: =(O48-M48)/$E$6*200/$P$18 ->  | Q48: 0.7 | R48: =IF(L48>O48,0,IF(L48<M48,Q48,(1-(L48-$M48)/($O48-$M48))*$Q48)) ->  | S48: =(1-(N48-$M48)/($O48-$M48))*$Q48 -> 
B49: sous-sols | D49: SSL | E49: ='USER TEC-Tec'!D63 -> 0 | F49: =H49 -> 0 | G49: =G12 -> 0 | H49: =(G49+2*I49)/3 -> 0 | I49: =I12 -> 0 | J49: kgCO2e / m² | K49: =480*0.3 -> 144 | L49: =E49*$K49*'USER TEC-Tec'!G63/1000 -> 0 | M49: =G49*$K49/1000 -> 0 | N49: 0 | O49: 0 | T49: ép. moy. 30 cm
B50: plus-value poutres de reprise | D50: m² | E50: ='USER TEC-Tec'!D64 -> 0 | F50: =H50 -> 0 | G50: 0 | H50: =(G50+2*I50)/3 -> 0 | I50: =I49/2 -> 0 | J50: kgCO2e / m² | K50: =700*0.05 -> 35 | L50: =E50*$K50*'USER TEC-Tec'!G64/1000 -> 0 | M50: 0 | N50: 0 | O50: 0 | T50: ép. moy. 5 cm supplémentaires
B51: Planchers | C51: 6 | L51: =SUM(L52:L56) -> 0 | M51: =SUM(M52:M56) -> 0 | N51: =SUM(N52:N56) -> 0 | O51: =SUM(O52:O56) -> 0 | P51: =(O51-M51)/$E$6*200/$P$18 ->  | Q51: 1.5 | R51: =IF(L51=0,0,IF(L51>O51,0,IF(L51<M51,Q51,(1-(L51-$M51)/($O51-$M51))*$Q51))) -> 0 | S51: =(1-(N51-$M51)/($O51-$M51))*$Q51 -> 
B52: béton | D52: % de (SdP + SC) | E52: ='USER TEC-Tec'!D67 -> 0 | F52: =IF(F6*F7=0,0,H52) -> 0 | G52: 0.1 | H52: =(G52+2*I52)/3 -> 0.7 | I52: 1 | J52: kgCO2e / m² | K52: =450*0.2 -> 90 | L52: =E52*(E$11+E$14)*$K52*'USER TEC-Tec'!G67/1000 -> 0 | M52: =G52*(G$11+G$14)*$K52/1000 -> 0 | N52: 0 | O52: 0 | T52: ép. moy. 20 cm
B53: collaborant métal-béton | D53: % de (SdP + SC) | E53: ='USER TEC-Tec'!D68 -> 0 | F53: =IF(F6*F7=0,0,H53) -> 0 | G53: 0 | H53: =(G53+2*I53)/3 -> 0 | I53: 0 | J53: kgCO2e / m² | K53: =1800*0.04+400*0.12 -> 120 | L53: =E53*(E$11+E$14)*$K53*'USER TEC-Tec'!G68/1000 -> 0 | M53: 0 | N53: 0 | O53: 0 | T53: acier 40 kg/m² et béton ép. 12 cm
B54: collaborant bois-béton | D54: % de (SdP + SC) | E54: ='USER TEC-Tec'!D69 -> 0 | F54: =IF(F6*F7=0,0,H54) -> 0 | G54: 0.3 | H54: =(G54+2*I54)/3 -> 0.1 | I54: 0 | J54: kgCO2e / m² | K54: 0 | L54: =E54*(E$11+E$14)*$K54*'USER TEC-Tec'!G69/1000 -> 0 | M54: 0 | N54: 0 | O54: 0 | T54: bois 25 kg/m² et chape ép. 5 cm
B55: ossature et platelage bois | D55: % de (SdP + SC) | E55: ='USER TEC-Tec'!D70 -> 0 | F55: =IF(F6*F7=0,0,H55) -> 0 | G55: 0.3 | H55: =(G55+2*I55)/3 -> 0.1 | I55: 0 | J55: kgCO2e / m² | K55: =-20 -> -20 | L55: =E55*(E$11+E$14)*$K55*'USER TEC-Tec'!G70/1000 -> 0 | M55: 0 | N55: 0 | O55: 0 | T55: bois 25 kg/m² et parquet bois
B56: bois plein (CLT) | D56: % de (SdP + SC) | E56: ='USER TEC-Tec'!D71 -> 0 | F56: =IF(F6*F7=0,0,H56) -> 0 | G56: 0.3 | H56: =(G56+2*I56)/3 -> 0.1 | I56: 0 | J56: kgCO2e / m² | K56: =-80 -> -80 | L56: =E56*(E$11+E$14)*$K56*'USER TEC-Tec'!G71/1000 -> 0 | M56: 0 | N56: 0 | O56: 0 | T56: bois CLT masse moy. 110 kg/m²
B57: Ossature principale | C57: 7 | L57: =SUM(L58:L63) -> 0 | M57: =SUM(M58:M63) -> 0 | N57: =SUM(N58:N63) -> 0 | O57: =SUM(O58:O63) -> 0 | P57: =(O57-M57)/$E$6*200/$P$18 ->  | Q57: 1 | R57: =IF(L57=0,0,IF(L57>O57,0,IF(L57<M57,Q57,(1-(L57-$M57)/($O57-$M57))*$Q57))) -> 0 | S57: =(1-(N57-$M57)/($O57-$M57))*$Q57 -> 
B58: voiles de refend en béton | D58: % de SdP | E58: ='USER TEC-Tec'!D74 -> 0 | F58: =IF(F6*F7=0,0,H58) -> 0 | G58: 0 | H58: =(G58+2*I58)/3 -> 0.3333333333 | I58: 0.5 | J58: kgCO2e / m² | K58: =420*0.17 -> 71.4 | L58: =E58*E$11*$K58*'USER TEC-Tec'!G74/1000 -> 0 | M58: =G58*G$11*$K58/1000 -> 0 | N58: 0 | O58: 0 | T58: hyp. de 1 m² par m² avec ép. 17 cm
B59: murs en matériaux locaux | D59: % de SdP | E59: ='USER TEC-Tec'!D75 -> 0 | F59: =IF(F6*F7=0,0,H59) -> 0 | G59: 0 | H59: 0 | I59: 0 | J59: kgCO2e / m² | K59: =15 -> 15 | L59: =E59*E$11*$K59*'USER TEC-Tec'!G75/1000 -> 0 | M59: 0 | N59: 0 | O59: 0 | T59: hyp remplissage pierre ou terre crue
B60: ossature béton | D60: % de SdP | E60: ='USER TEC-Tec'!D76 -> 0 | F60: =IF(F6*F7=0,0,H60) -> 0 | G60: 0 | H60: 0 | I60: 0 | J60: kgCO2e / m² | K60: =700*0.03 -> 21 | L60: =E60*E$11*$K60*'USER TEC-Tec'!G76/1000 -> 0 | M60: 0 | N60: 0 | O60: 0 | T60: ép. moy. 3 cm
B61: ossature métal | D61: % de SdP | E61: ='USER TEC-Tec'!D77 -> 0 | F61: =IF(F6*F7=0,0,H61) -> 0 | G61: 0 | H61: 0.3333333333 | I61: 0.5 | J61: kgCO2e / m² | K61: =1800*0.02 -> 36 | L61: =E61*E$11*$K61*'USER TEC-Tec'!G77/1000 -> 0 | M61: 0 | N61: 0 | O61: 0 | T61: acier 20 kg/m²
B62: ossature bois | D62: % de SdP | E62: ='USER TEC-Tec'!D78 -> 0 | F62: =IF(F6*F7=0,0,H62) -> 0 | G62: 0 | H62: 0 | I62: 0 | J62: kgCO2e / m² | K62: =-15 -> -15 | L62: =E62*E$11*$K62*'USER TEC-Tec'!G78/1000 -> 0 | M62: 0 | N62: 0 | O62: 0 | T62: bois 20 kg/m²
B63: bois massif (CLT) | D63: % de SdP | E63: ='USER TEC-Tec'!D79 -> 0 | F63: =IF(F6*F7=0,0,H63) -> 0 | G63: 1 | H63: 0.3333333333 | I63: 0 | J63: kgCO2e / m² | K63: =-30 -> -30 | L63: =E63*E$11*$K63*'USER TEC-Tec'!G79/1000 -> 0 | M63: 0 | N63: 0 | O63: 0 | T63: bois 40 kg/m²
B64: Remplissage de façade | C64: 8 | L64: =SUM(L65:L74) -> 0 | M64: =SUM(M65:M74) -> 0 | N64: =SUM(N65:N74) -> 0 | O64: =SUM(O65:O74) -> 0 | P64: =(O64-M64)/$E$6*200/$P$18 ->  | Q64: 0.8 | R64: =IF(L64=0,0,IF(L64>O64,0,IF(L64<M64,Q64,(1-(L64-$M64)/($O64-$M64))*$Q64))) -> 0 | S64: =(1-(N64-$M64)/($O64-$M64))*$Q64 -> 
B65: voiles béton | D65: % de SFa | E65: ='USER TEC-Tec'!D82 -> 0 | F65: =IF(F6*F7=0,0,H65) -> 0 | G65: 0 | H65: =(G65+2*I65)/3 -> 0.1666666667 | I65: 0.25 | J65: kgCO2e / m² | K65: 70 | L65: =E65*E$13*$K65*'USER TEC-Tec'!G82/1000 -> 0 | M65: =G65*G$13*$K65/1000 -> 0 | N65: =H65*H$13*$K65/1000 -> 0 | O65: =I65*I$13*$K65/1000 -> 0 | T65: ép. moy. 16 cm
B66: maçonnerie | D66: % de SFa | E66: ='USER TEC-Tec'!D83 -> 0 | F66: =IF(F6*F7=0,0,H66) -> 0 | G66: 0 | H66: 0 | I66: 0 | J66: kgCO2e / m² | K66: 35 | L66: =E66*E$13*$K66*'USER TEC-Tec'!G83/1000 -> 0 | M66: 0 | N66: 0 | O66: 0 | T66: parpaing creux ou brique creuse
B67: métallique | D67: % de SFa | E67: ='USER TEC-Tec'!D84 -> 0 | F67: =IF(F6*F7=0,0,H67) -> 0 | G67: 0.8 | H67: 0.2666666667 | I67: 0 | J67: kgCO2e / m² | K67: 80 | L67: =E67*E$13*$K67*'USER TEC-Tec'!G84/1000 -> 0 | M67: 0 | N67: 0 | O67: 0 | T67: bardage double et isolant
B68: mur en terre | D68: % de SFa | E68: ='USER TEC-Tec'!D84 -> 0 | F68: =IF(F6*F7=0,0,H68) -> 0 | G68: 0 | H68: 0 | I68: 0 | J68: kgCO2e / m² | K68: 5 | L68: =E68*E$13*$K68*'USER TEC-Tec'!G84/1000 -> 0 | M68: 0 | N68: 0 | O68: 0
B69: ossature bois | D69: % de SFa | E69: ='USER TEC-Tec'!D86 -> 0 | F69: =IF(F6*F7=0,0,H69) -> 0 | G69: 0 | H69: 0 | I69: 0 | J69: kgCO2e / m² | K69: -15 | L69: =E69*E$13*$K69*'USER TEC-Tec'!G86/1000 -> 0 | M69: 0 | N69: 0 | O69: 0 | T69: ép. moy. 4 cm (MOB 15 kg/m²)
B70: mur rideau acier et aluminium | D70: % de SFa | E70: ='USER TEC-Tec'!D87 -> 0 | F70: =IF(F6*F7=0,0,H70) -> 0 | G70: 0 | H70: 0 | I70: 0 | J70: kgCO2e / m² | K70: 130 | L70: =E70*E$13*$K70*'USER TEC-Tec'!G87/1000 -> 0 | M70: 0 | N70: 0 | O70: 0
B71: châssis acier vitré | D71: % de SFa | E71: ='USER TEC-Tec'!D88 -> 0 | F71: =IF(F6*F7=0,0,H71) -> 0 | G71: 0 | H71: 0.1666666667 | I71: 0.25 | J71: kgCO2e / m² | K71: 115 | L71: =E71*E$13*$K71*'USER TEC-Tec'!G88/1000 -> 0 | M71: 0 | N71: 0 | O71: 0
B72: châssis aluminium vitré | D72: % de SFa | E72: ='USER TEC-Tec'!D89 -> 0 | F72: =IF(F6*F7=0,0,H72) -> 0 | G72: 0 | H72: 0.3333333333 | I72: 0.5 | J72: kgCO2e / m² | K72: 105 | L72: =E72*E$13*$K72*'USER TEC-Tec'!G89/1000 -> 0 | M72: 0 | N72: 0 | O72: 0
B73: châssis PVC vitré | D73: % de SFa | E73: ='USER TEC-Tec'!D90 -> 0 | F73: =IF(F6*F7=0,0,H73) -> 0 | G73: 0 | H73: 0 | I73: 0 | J73: kgCO2e / m² | K73: 85 | L73: =E73*E$13*$K73*'USER TEC-Tec'!G90/1000 -> 0 | M73: 0 | N73: 0 | O73: 0
B74: châssis bois vitré | D74: % de SFa | E74: ='USER TEC-Tec'!D91 -> 0 | F74: =IF(F6*F7=0,0,H74) -> 0 | G74: 0.2 | H74: 0.06666666667 | I74: 0 | J74: kgCO2e / m² | K74: 40 | L74: =E74*E$13*$K74*'USER TEC-Tec'!G91/1000 -> 0 | M74: 0 | N74: 0 | O74: 0
B75: Revêtement de façade | C75: 9 | L75: =SUM(L76:L82) -> 0 | M75: =SUM(M76:M82) -> 0 | N75: =SUM(N76:N82) -> 0 | O75: =SUM(O76:O82) -> 0 | P75: =(O75-M75)/$E$6*200/$P$18 ->  | Q75: 0.3 | R75: =IF(L75=0,0,IF(L75>O75,0,IF(L75<M75,Q75,(1-(L75-$M75)/($O75-$M75))*$Q75))) -> 0 | S75: =(1-(N75-$M75)/($O75-$M75))*$Q75 -> 
B76: peinture | D76: % de SFa | E76: ='USER TEC-Tec'!D94 -> 0 | F76: =IF($F$6*$F$7=0,0,H76) -> 0 | G76: 0 | H76: =(G76+2*I76)/3 -> 0 | I76: 0 | J76: kgCO2e / m² | K76: 1 | L76: =E76*E$13*$K76*'USER TEC-Tec'!G94/1000 -> 0 | M76: =G76*G$13*$K76/1000 -> 0 | N76: 0 | O76: 0
B77: enduit | D77: % de SFa | E77: ='USER TEC-Tec'!D95 -> 0 | F77: 0 | G77: 0 | H77: 0 | I77: 0 | J77: kgCO2e / m² | K77: 8 | L77: =E77*E$13*$K77*'USER TEC-Tec'!G95/1000 -> 0 | M77: 0 | N77: 0 | O77: 0
B78: briquette ou pierre | D78: % de SFa | E78: ='USER TEC-Tec'!D96 -> 0 | F78: 0 | G78: 0 | H78: 0 | I78: 0 | J78: kgCO2e / m² | K78: 20 | L78: =E78*E$13*$K78*'USER TEC-Tec'!G96/1000 -> 0 | M78: 0 | N78: 0 | O78: 0
B79: panneaux minéraux | D79: % de SFa | E79: ='USER TEC-Tec'!D97 -> 0 | F79: 0 | G79: 0 | H79: 0 | I79: 0 | J79: kgCO2e / m² | K79: 45 | L79: =E79*E$13*$K79*'USER TEC-Tec'!G97/1000 -> 0 | M79: 0 | N79: 0 | O79: 0
B80: bardage acier | D80: % de SFa | E80: ='USER TEC-Tec'!D98 -> 0 | F80: 0 | G80: 0 | H80: 0 | I80: 0 | J80: kgCO2e / m² | K80: 35 | L80: =E80*E$13*$K80*'USER TEC-Tec'!G98/1000 -> 0 | M80: 0 | N80: 0 | O80: 0
B81: bardage aluminium | D81: % de SFa | E81: ='USER TEC-Tec'!D99 -> 0 | F81: 0 | G81: 0 | H81: 0.1666666667 | I81: 0.25 | J81: kgCO2e / m² | K81: 80 | L81: =E81*E$13*$K81*'USER TEC-Tec'!G99/1000 -> 0 | M81: 0 | N81: 0 | O81: 0
B82: bardage bois | D82: % de SFa | E82: ='USER TEC-Tec'!D100 -> 0 | F82: 0 | G82: 0.8 | H82: 0.2666666667 | I82: 0 | J82: kgCO2e / m² | K82: 0 | L82: =E82*E$13*$K82*'USER TEC-Tec'!G100/1000 -> 0 | M82: 0 | N82: 0 | O82: 0
B83: Protections solaires extérieures | L83: =SUM(L84:L93) -> 0 | M83: =SUM(M84:M93) -> 0 | N83: =SUM(N84:N93) ->  | O83: =SUM(O84:O93) -> 0 | P83: =(O83-M83)/$E$6*200/$P$18 ->  | Q83: 1 | R83: =IF(L83>O83,0,IF(L83<M83,Q83,(1-(L83-$M83)/($O83-$M83))*$Q83)) ->  | S83: =(1-(N83-$M83)/($O83-$M83))*$Q83 -> 
B84: brise-soleil en toile ou en bois | D84: % de SFa | E84: ='USER TEC-Tec'!D103 -> 0 | F84: =IF($F$6*$F$7=0,0,H84) -> 0 | G84: 0.6 | H84: =(G84+2*I84)/3 -> 0.2 | I84: 0 | J84: kgCO2e / m² | K84: 0 | L84: =E84*E$13*$K84*'USER TEC-Tec'!G103/1000 -> 0 | M84: =G84*G$13*$K84/1000 -> 0 | N84: 0 | O84: 0
B85: brise-soleil en aluminium | D85: % de SFa | E85: ='USER TEC-Tec'!D104 -> 0 | F85: =IF($F$6*$F$7=0,0,H85) -> 0 | G85: 0 | H85: =(G85+2*I85)/3 -> 0.4 | I85: 0.6 | J85: kgCO2e / m² | K85: 100 | L85: =E85*E$13*$K85*'USER TEC-Tec'!G104/1000 -> 0 | M85: 0 | N85: 0 | O85: 0
B86: motorisation des brise-soleil | D86: % de SFa | E86: =IF(E87="aucun des 2","",(E84+E85)*E87) ->  | F86: =IF(F87="aucun des 2","",(F84+F85)*F87) ->  | G86: =(G84+G85)*G87 -> 0 | H86: =(H84+H85)*H87 ->  | I86: =(I84+I85)*I87 -> 0.6 | J86: kgCO2e / m² | K86: 10 | L86: =IF(E87="aucun des 2","",E86*E$13*$K86*'USER TEC-Tec'!G105/1000) ->  | M86: 0 | O86: 0
D87: ='USER TEC-Tec'!D105 -> - | E87: =IF(D87=D89,E89,IF(D87=D90,E90,"aucun des 2")) -> aucun des 2 | F87: =IF('USER TEC-Tec'!E105=D89,F89,IF('USER TEC-Tec'!E105=D90,F90,"aucun des 2")) -> aucun des 2 | G87: =MIN(E89:E90) -> 0 | H87: =F87 -> aucun des 2 | I87: =MAX(E89:E90) -> 1
D88: -
D89: oui | E89: 1 | F89: =E89 -> 1
D90: non | E90: 0 | F90: =E90 -> 0
B91: casquette (et/ou joue) bois | D91: % de SFa | E91: ='USER TEC-Tec'!D106 -> 0 | F91: =IF($F$6*$F$7=0,0,H91) -> 0 | G91: 0.6 | H91: =(G91+2*I91)/3 -> 0.2 | I91: 0 | J91: kgCO2e / m² | K91: -10 | L91: =E91*E$13*$K91*'USER TEC-Tec'!G106/1000 -> 0 | M91: =G91*G$13*$K91/1000 -> 0 | N91: 0 | O91: 0
B92: casquette (et/ou joue) métal | D92: % de SFa | E92: ='USER TEC-Tec'!D107 -> 0 | F92: =IF($F$6*$F$7=0,0,H92) -> 0 | G92: 0 | H92: =(G92+2*I92)/3 -> 0 | I92: 0 | J92: kgCO2e / m² | K92: 30 | L92: =E92*E$13*$K92*'USER TEC-Tec'!G107/1000 -> 0 | M92: 0 | N92: 0 | O92: 0
B93: casquette (et/ou joue) béton | D93: % de SFa | E93: ='USER TEC-Tec'!D108 -> 0 | F93: =H93 -> 0.4 | G93: 0 | H93: =(G93+2*I93)/3 -> 0.4 | I93: 0.6 | J93: kgCO2e / m² | K93: 40 | L93: =E93*E$13*$K93*'USER TEC-Tec'!G108/1000 -> 0 | M93: 0 | N93: 0 | O93: 0 | T93: ép. moy. 16 cm 1 m de lg / 3 m ht
B94: Toiture | C94: 10 | L94: =SUM(L95:L101) -> 0 | M94: =SUM(M95:M101) -> 0 | N94: =SUM(N95:N101) -> 0 | O94: =SUM(O95:O101) -> 0 | P94: =(O94-M94)/$E$6*200/$P$18 ->  | Q94: 1.1 | R94: =IF(L94=0,0,IF(L94>O94,0,IF(L94<M94,Q94,(1-(L94-$M94)/($O94-$M94))*$Q94))) -> 0 | S94: =(1-(N94-$M94)/($O94-$M94))*$Q94 -> 
B95: dalle béton | D95: % de ST | E95: ='USER TEC-Tec'!D111 -> 0 | F95: =IF($F$6*$F$7=0,0,H95) -> 0 | G95: 0 | H95: =(G95+2*I95)/3 -> 0.6666666667 | I95: 1 | J95: kgCO2e / m² | K95: 108 | L95: =E95*E$15*$K95*'USER TEC-Tec'!G111/1000 -> 0 | M95: =G95*G$15*$K95/1000 -> 0 | N95: 0 | O95: 0
B96: plancher bois | D96: % de ST | E96: ='USER TEC-Tec'!D112 -> 0 | F96: 0 | G96: 0 | H96: 0 | I96: 0 | J96: kgCO2e / m² | K96: -20 | L96: =E96*E$15*$K96*'USER TEC-Tec'!G112/1000 -> 0 | M96: 0 | N96: 0 | O96: 0
B97: charpente métallique | D97: % de ST | E97: ='USER TEC-Tec'!D114 -> 0 | F97: 0 | G97: 0 | H97: 0 | I97: 0 | J97: kgCO2e / m² | K97: 40 | L97: =E97*E$15*$K97*'USER TEC-Tec'!G114/1000 -> 0 | M97: 0 | N97: 0 | O97: 0
B98: charpente bois | D98: % de ST | E98: ='USER TEC-Tec'!D115 -> 0 | F98: 0 | G98: 1 | H98: 0.3333333333 | I98: 0 | J98: kgCO2e / m² | K98: -20 | L98: =E98*E$15*$K98*'USER TEC-Tec'!G115/1000 -> 0 | M98: 0 | N98: 0 | O98: 0
B99: revêtement d'étanchéité | D99: % de ST | E99: ='USER TEC-Tec'!D117 -> 0 | F99: 0 | G99: 0 | H99: 0.3333333333 | I99: 0.5 | J99: kgCO2e / m² | K99: 20 | L99: =E99*E$15*$K99*'USER TEC-Tec'!G117/1000 -> 0 | M99: 0 | N99: 0 | O99: 0
B100: couverte en tôle | D100: % de ST | E100: ='USER TEC-Tec'!D118 -> 0 | F100: 0 | G100: 0 | H100: 0.3333333333 | I100: 0.5 | J100: kgCO2e / m² | K100: 20 | L100: =E100*E$15*$K100*'USER TEC-Tec'!G118/1000 -> 0 | M100: 0 | N100: 0 | O100: 0
B101: couverture biosourcée | D101: % de ST | E101: ='USER TEC-Tec'!D119 -> 0 | F101: 0 | G101: 1 | H101: 0.3333333333 | I101: 0 | J101: kgCO2e / m² | K101: -5 | L101: =E101*E$15*$K101*'USER TEC-Tec'!G119/1000 -> 0 | M101: 0 | N101: 0 | O101: 0
B102: Isolation | C102: 11 | L102: =SUM(L103:L110) -> 0 | M102: =SUM(M103:M110) -> 0 | N102: =SUM(N103:N110) ->  | O102: =SUM(O103:O110) -> 0 | P102: =(O102-M102)/$E$6*200/$P$18 ->  | Q102: 0.3 | R102: =IF(D104="-",0,IF(L102>O102,0,IF(L102<M102,Q102,(1-(L102-$M102)/($O102-$M102))*$Q102))) -> 0 | S102: =(1-(N102-$M102)/($O102-$M102))*$Q102 -> 
B103: toiture | D103: m² | E103: =E15 -> 0 | F103: =H103 -> 0 | G103: =G15 -> 0 | H103: =H15 -> 0 | I103: =I15 -> 0 | J103: kg CO2e / m³ | K103: 10 | L103: =IF(E104="aucun des 3","",E103*$K103*'USER TEC-Tec'!G117*E104/1000) ->  | M103: =G103*$K103*G104/1000 -> 0 | N103: =H103*$K103*H104/1000 ->  | O103: =I103*$K103*I104/1000 -> 0
D104: ='USER TEC-Tec'!D122 -> - | E104: =IF(D104=D106,E106,IF(D104=D107,E107,IF(D104=D108,E108,"aucun des 3"))) -> aucun des 3 | F104: =IF('USER TEC-Tec'!E122=D106,F106,IF('USER TEC-Tec'!E122=D107,F107,IF('USER TEC-Tec'!E122=D108,F108,"aucun des 3"))) -> aucun des 3 | G104: =MIN(E106:E108) -> -1 | H104: =F104 -> aucun des 3 | I104: =MAX(E106:E108) -> 1
D105: -
D106: sans isolant | E106: 0 | F106: =E106 -> 0
D107: isolant conventionnel | E107: 1 | F107: =E107 -> 1
D108: isolant biosourcé | E108: -1 | F108: =E108 -> -1
B109: façades avec isolant conventionnel | D109: % de SFa | E109: ='USER TEC-Tec'!D123 -> 0 | F109: =IF($F$6*$F$7=0,0,H109) -> 0 | G109: 0 | H109: =(G109+2*I109)/3 -> 0.2666666667 | I109: 0.4 | J109: kgCO2e / m² | K109: 20 | L109: =E109*E$13*$K109*'USER TEC-Tec'!G123/1000 -> 0 | M109: =G109*G$13*$K109/1000 -> 0 | N109: 0 | O109: 0
B110: façades avec isolant biosourcé | D110: % de SFa | E110: ='USER TEC-Tec'!D124 -> 0 | F110: =IF($F$6*$F$7=0,0,H110) -> 0 | G110: 0.8 | H110: =(G110+2*I110)/3 -> 0.2666666667 | I110: 0 | J110: kgCO2e / m² | K110: -10 | L110: =E110*E$13*$K110*'USER TEC-Tec'!G124/1000 -> 0 | M110: 0 | N110: 0 | O110: 0
B111: Habillages intérieurs | C111: 12 | L111: =SUM(L112:L114) -> 0 | M111: =SUM(M112:M114) -> 0 | N111: =SUM(N112:N114) -> 0 | O111: =SUM(O112:O114) -> 0 | P111: =(O111-M111)/$E$6*200/$P$18 ->  | Q111: 0.5 | R111: =IF(L111=0,0,IF(L111>O111,0,IF(L111<M111,Q111,(1-(L111-$M111)/($O111-$M111))*$Q111))) -> 0 | S111: =(1-(N111-$M111)/($O111-$M111))*$Q111 -> 
B112: faux-plafond minéral | D112: % de SU | E112: ='USER TEC-Tec'!D127 -> 0 | F112: =IF($F$6*$F$7=0,0,H112) -> 0 | G112: 0 | H112: =(G112+2*I112)/3 -> 0.6666666667 | I112: 1 | J112: kgCO2e / m² | K112: 25 | L112: =E112*E$6*$K112*'USER TEC-Tec'!G127/1000 -> 0 | M112: =G112*G$6*$K112/1000 -> 0 | N112: 0 | O112: 0
B113: faux-plancher technique | D113: % de SU | E113: ='USER TEC-Tec'!D128 -> 0 | F113: =IF($F$6*$F$7=0,0,H113) -> 0 | G113: 0 | H113: =(G113+2*I113)/3 -> 0.6666666667 | I113: 1 | J113: kgCO2e / m² | K113: 40 | L113: =E113*E$6*$K113*'USER TEC-Tec'!G128/1000 -> 0 | M113: 0 | N113: 0 | O113: 0
B114: autres | D114: kg CO2e | L114: =E6*0.075 -> 0 | M114: =G6*0.075 -> 0 | N114: =H6*0.075 -> 0 | O114: =I6*0.075 -> 0
B115: Production locale d'EnR | C115: 13 | J115: m² PV / kWc | K115: 8 | L115: =SUM(L116:L118) -> 0 | M115: =SUM(M116:M118) -> 0 | N115: =SUM(N116:N118) -> 0 | O115: =SUM(O116:O118) -> 0 | P115: =(O115-M115)/$E$6*200/$P$18 ->  | Q115: 2.4 | R115: =IF(L115>O115,0,IF(L115<M115,Q115,(1-(L115-$M115)/($O115-$M115))*$Q115)) ->  | S115: =(1-(N115-$M115)/($O115-$M115))*$Q115 -> 
B116: installation solaire thermique | D116: m² de panneaux | E116: ='USER TEC-Tec'!D131 -> 0 | F116: =IF($F$6*$F$7=0,0,H116) -> 0 | G116: 0 | H116: =(2*G116+I116)/3 -> 0 | I116: =I6*5/1000 -> 0 | J116: kgCO2e / m² | K116: 80 | L116: =E116*$K116*'USER TEC-Tec'!G131/1000 -> 0 | M116: =G116*$K116/1000 -> 0 | N116: 0 | O116: 0
B117: installation photovoltaïque sans batterie | D117: kWc | E117: ='USER TEC-Tec'!D132 -> 0 | F117: =IF($F$6*$F$7=0,0,H117) -> 0 | G117: 0 | H117: 0 | I117: 0 | J117: kgCO2e / kWc | K117: =250*K115 -> 2000 | L117: =E117*$K117*'USER TEC-Tec'!G132/1000 -> 0 | M117: 0 | N117: 0 | O117: 0
B118: installation photovoltaïque avec batteries | D118: kWc | E118: ='USER TEC-Tec'!D133 -> 0 | F118: =IF($F$6*$F$7=0,0,H118) -> 0 | G118: 0 | H118: 0 | I118: =G6*0.1 -> 0 | J118: kgCO2e / kWc | K118: =K117*1.5 -> 3000 | L118: =E118*$K118*'USER TEC-Tec'!G133/1000 -> 0 | M118: 0 | N118: 0 | O118: 0
B119: Variation d'albédo | C119: 14 | L119: =SUM(L120:L123) -> 0 | M119: =SUM(M120:M123) -> 0 | N119: =SUM(N120:N123) -> 0 | O119: =SUM(O120:O123) -> 0 | P119: =(O119-M119)/$E$6*200/$P$18 ->  | Q119: 0.8 | R119: =IF(L119>O119,0,IF(L119<M119,Q119,(1-(L119-$M119)/($O119-$M119))*$Q119)) ->  | S119: =(1-(N119-$M119)/($O119-$M119))*$Q119 -> 
B120: ton presque inchangé | D120: % de SF | E120: ='USER TEC-Tec'!D136 -> 0 | F120: =IF($F$6*$F$7=0,0,H120) -> 0 | G120: 0.5 | H120: =(G120+2*I120)/3 -> 0.5 | I120: 0.5 | J120: kgCO2e / m² | K120: 0 | L120: =E120*E$7*$K120*'USER TEC-Tec'!G136/1000 -> 0 | M120: =G120*G$7*$K120/1000 -> 0 | N120: 0 | O120: 0
B121: fonçage (couleur foncée → noir) | D121: % de SF | E121: ='USER TEC-Tec'!D137 -> 0 | F121: =IF($F$6*$F$7=0,0,H121) -> 0 | G121: 0 | H121: =(G121+2*I121)/3 -> 0.3333333333 | I121: 0.5 | J121: kgCO2e / m² | K121: =320*0.1 -> 32 | L121: =E121*E$7*$K121*'USER TEC-Tec'!G137/1000 -> 0 | M121: 0 | N121: 0 | O121: 0
B122: éclaircissement (couleur foncée → couleur moyenne) | D122: % de SF | E122: ='USER TEC-Tec'!D138 -> 0 | F122: =IF($F$6*$F$7=0,0,H122) -> 0 | G122: 0.25 | H122: =(G122+2*I122)/3 -> 0.08333333333 | I122: 0 | J122: kgCO2e / m² | K122: =-320*0.15 -> -48 | L122: =E122*E$7*$K122*'USER TEC-Tec'!G138/1000 -> 0 | M122: 0 | N122: 0 | O122: 0
B123: fort éclaircissement (couleur foncée → couleur très claire) | D123: % de SF | E123: ='USER TEC-Tec'!D139 -> 0 | F123: =IF($F$6*$F$7=0,0,H123) -> 0 | G123: 0.25 | H123: =(G123+2*I123)/3 -> 0.08333333333 | I123: 0 | J123: kgCO2e / m² | K123: =-320*0.3 -> -96 | L123: =E123*E$7*$K123*'USER TEC-Tec'!G139/1000 -> 0 | M123: 0 | N123: 0 | O123: 0
B124: Installation de chantier | C124: 15 | L124: =IF(E125="aucun des 2","",E11*0.03*E125) ->  | M124: =G11*0.03*G125 -> 0 | N124: =H11*0.03*H125 ->  | O124: =I11*0.03*I125 -> 0 | P124: =(O124-M124)/$E$6*200/$P$18 ->  | Q124: 0.3 | R124: =IF(L124>O124,0,IF(L124<M124,Q124,(1-(L124-$M124)/($O124-$M124))*$Q124)) -> 0 | S124: =(1-(N124-$M124)/($O124-$M124))*$Q124 -> 
B125: organisation | D125: ='USER TEC-Tec'!D142 -> - | E125: =IF(D125=D127,E127,IF(D125=D128,E128,"aucun des 2")) -> aucun des 2 | F125: =IF('USER TEC-Tec'!E142=D127,F127,IF('USER TEC-Tec'!E142=D128,F128,"aucun des 2")) -> aucun des 2 | G125: =MIN(E127:E128) -> 0.8 | H125: =F125 -> aucun des 2 | I125: =MAX(E127:E128) -> 1
D126: -
D127: conventionnelle | E127: 1 | F127: =E127 -> 1
D128: chantier vert | E128: 0.8 | F128: =E128 -> 0.8
B129: Divers non affectés | C129: 16 | L129: =E11*0.002 -> 0 | M129: =G11*0.002 -> 0 | N129: =H11*0.002 -> 0 | O129: =I11*0.002 -> 0 | P129: =(O129-M129)/$E$6*200/$P$18 ->  | Q129: 0 | R129: =IF(L129>O129,0,IF(L129<M129,Q129,(1-(L129-$M129)/($O129-$M129))*$Q129)) ->  | S129: =(1-(N129-$M129)/($O129-$M129))*$Q129 -> 
K130: Émissions initiales de construction | L130: =IF(OR(L124="",L119="",L115="",L111="",L102="",L94="",L75="",L64="",L57="",L51="",L48="",L36="",L24="",L22="",L19=""),0,L19+L22+L24+L36+L48+L51+L57+L64+L75+L94+L102+L111+L115+L119+L124+L129) -> 0 | M130: =M19+M22+M24+M36+M48+M51+M57+M64+M75+M94+M102+M111+M115+M119+M124+M129 -> 0 | N130: =N19+N22+N24+N36+N48+N51+N57+N64+N75+N94+N102+N111+N115+N119+N124+N129 ->  | O130: =O19+O22+O24+O36+O48+O51+O57+O64+O75+O94+O102+O111+O115+O119+O124+O129 -> 0 | P130: =SUM(P19:P129) ->  | Q130: =SUM(Q19:Q129) -> 13 | R130: =SUM(R19:R129) ->  | S130: =SUM(S19:S129) -> 
B131: Autres corps d'état | C131: 17 | J131: kgCO2e / m² de SU | K131: 100 | L131: =K131*E6/1000 -> 0 | Q131: =Q130*100/$Q$396 ->  | R131: =R130*100/$Q$396 ->  | S131: =S130*100/$Q$396 -> 
A132: Énergie
B133: ratios FE électricité | J133: kg CO2e / kWh | T133: kWh d'énergie finale
B134: Rafraîchissement pour le confort | C134: 1 | D134: kWh / an | E134: ='USER TEC-Tec'!D162 -> 0 | F134: =ROUND(F6*F174/100,0)*100 ->  | G134: =G173*G174 -> 0 | H134: =H173*H174 ->  | I134: =I173*I174 ->  | J134: kg CO2e / kWh | K134: 0.65 | L134: =IF(E136="aucun des 3","",E134*$K134*'USER TEC-Tec'!G162/1000) ->  | M134: =G134*$K134/1000 -> 0 | N134: =H134*$K134/1000 ->  | O134: =I134*$K134/1000 ->  | P134: =(O134-M134)/$E$6*200 ->  | Q134: 9.5 | R134: =IF(L134>O134,0,IF(L134<M134,Q134,(1-(L134-$M134)/($O134-$M134))*$Q134)) ->  | S134: =(1-(N134-$M134)/($O134-$M134))*$Q134 -> 
B135: zone en ventilation naturelle + brasseurs d'air | D135: m² | E135: ='USER TEC-Tec'!D149 -> 0 | F135: =IF($F$6*$F$7=0,0,H135) -> 0 | G135: =G6 -> 0 | H135: =(G135+2*I135)/3 -> 0 | I135: 0
B136: performance de l'enveloppe et de son environnement | D136: ='USER TEC-Tec'!D147 -> - | E136: =IF(D136=D138,E138,IF(D136=D139,E139,IF(D136=D140,E140,"aucun des 3"))) -> aucun des 3 | F136: =IF('USER TEC-Tec'!E147=D138,F138,IF('USER TEC-Tec'!E147=D139,F139,IF('USER TEC-Tec'!E147=D140,F140,"aucun des 3"))) -> aucun des 3 | G136: =MIN(E138:E140) -> 3 | H136: =F136 -> aucun des 3 | I136: =MAX(E138:E140) -> 6
D137: -
D138: médiocre | E138: 6 | F138: =E138 -> 6
D139: correcte | E139: 4 | F139: =E139 -> 4
D140: performante | E140: 3 | F140: =E140 -> 3
B141: consommation unitaire | D141: kWh / m² | E141: =IF(E136="aucun des 3","",E136*6*10*20/1000) ->  | F141: =IF(F136="aucun des 3","",F136*6*10*20/1000) ->  | G141: =G136*6*10*20/1000 -> 3.6 | H141: =H136*6*10*20/1000 ->  | I141: =I136*6*10*20/1000 -> 7.2 | T141: Calcul : W/m² x mois/an x h/j x j/mois
B142: zone en climatisation + ventilation naturelle + brasseurs d'air | D142: m² | E142: ='USER TEC-Tec'!D151 -> 0 | F142: =IF($F$6*$F$7=0,0,H142) -> 0 | G142: 0 | H142: =(G142+2*I142)/3 -> 0 | I142: 0
B143: performance de l'enveloppe et de son environnement | D143: ='USER TEC-Tec'!D147 -> - | E143: =IF(D143=D144,E144,IF(D143=D145,E145,IF(D143=D146,E146,"aucun des 3"))) -> aucun des 3 | F143: =IF('USER TEC-Tec'!E147=D144,F144,IF('USER TEC-Tec'!E147=D145,F145,IF('USER TEC-Tec'!E147=D146,F146,"aucun des 3"))) -> aucun des 3 | G143: =MIN(E144:E146) -> 10 | H143: =F143 -> aucun des 3 | I143: =MAX(E144:E146) -> 30
D144: médiocre | E144: 30 | F144: =E144 -> 30
D145: correcte | E145: 20 | F145: =E145 -> 20
D146: performante | E146: 10 | F146: =E146 -> 10
B147: durée de fonctionnement de la climatisation | D147: ='USER TEC-Tec'!D152 -> - | E147: =IF(D147=D149,E149,IF(D147=D150,E150,IF(D147=D151,E151,"aucun des 3"))) -> aucun des 3 | F147: =IF('USER TEC-Tec'!E152=D149,F149,IF('USER TEC-Tec'!E152=D150,F150,IF('USER TEC-Tec'!E152=D151,F151,"aucun des 3"))) -> aucun des 3 | G147: =MIN(E149:E151) -> 1.5 | H147: =F147 -> aucun des 3 | I147: =MAX(E149:E151) -> 6
D148: -
D149: très faible (environ 1 mois 1/2) | E149: 1.5 | F149: =E149 -> 1.5
D150: occasionnelle (environ 3 mois) | E150: 3 | F150: =E150 -> 3
D151: fréquente (environ 6 mois) | E151: 6 | F151: =E151 -> 6
B152: consommation unitaire | D152: kWh / m² | E152: =IF(OR(E143="aucun des 3",E147="aucun des 3",E136="aucun des 3"),"0",(E143*E147+E136*6)*10*20/1000) -> 0 | F152: =IF(F147="aucun des 3","",F143*F147*10*20/1000) ->  | G152: =G143*G147*10*20/1000 -> 3 | H152: =H143*H147*10*20/1000 ->  | I152: =I143*I147*10*20/1000 -> 36
B153: zone en climatisation + brasseurs d'air | D153: m² | E153: ='USER TEC-Tec'!D154 -> 0 | F153: =IF($F$6*$F$7=0,0,H153) -> 0 | G153: 0 | H153: =(G153+2*I153)/3 -> 0 | I153: =I6*0.9 -> 0
B154: performance de l'enveloppe et de son environnement | D154: ='USER TEC-Tec'!D147 -> - | E154: =IF(D154=D155,E155,IF(D154=D156,E156,IF(D154=D157,E157,"aucun des 3"))) -> aucun des 3 | F154: =IF('USER TEC-Tec'!E147=D155,F155,IF('USER TEC-Tec'!E147=D156,F156,IF('USER TEC-Tec'!E147=D157,F157,"aucun des 3"))) -> aucun des 3 | G154: =MIN(E155:E157) -> 10 | H154: =F154 -> aucun des 3 | I154: =MAX(E155:E157) -> 30
D155: médiocre | E155: 30 | F155: =E155 -> 30
D156: correcte | E156: 20 | F156: =E156 -> 20
D157: performante | E157: 10 | F157: =E157 -> 10
B158: durée de fonctionnement de la climatisation | D158: ='USER TEC-Tec'!D155 -> - | E158: =IF(D158=D160,E160,IF(D158=D161,E161,"aucun des 2")) -> aucun des 2 | F158: =IF('USER TEC-Tec'!E155=D160,F160,IF('USER TEC-Tec'!E155=D161,F161,"aucun des 2")) -> aucun des 2 | G158: =MIN(E160:E161) -> 8 | H158: =F158 -> aucun des 2 | I158: =MAX(E160:E161) -> 12
D159: -
D160: fréquente (environ 8 mois) | E160: 8 | F160: =E160 -> 8
D161: permanente (environ 12 mois) | E161: 12 | F161: =E161 -> 12
B162: consommation unitaire | D162: kWh / m² | E162: =IF(OR(E154="aucun des 3",E158="aucun des 2",E136="aucun des 3"),"0",(E154*E158+E136*6)*10*20/1000) -> 0 | F162: =IF(F158="aucun des 3","",F154*F158*10*20/1000) ->  | G162: =G154*G158*10*20/1000 -> 16 | H162: =H154*H158*10*20/1000 ->  | I162: =I154*I158*10*20/1000 -> 72
B163: zone en climatisation seule (hors locaux techniques) | D163: m² | E163: ='USER TEC-Tec'!D157 -> 0 | F163: =IF($F$6*$F$7=0,0,H163) -> 0 | G163: 0 | H163: =(G163+2*I163)/3 -> 0 | I163: =I6/10 -> 0
B164: performance de l'enveloppe et de son environnement | D164: ='USER TEC-Tec'!D147 -> - | E164: =IF(D164=D165,E165,IF(D164=D166,E166,IF(D164=D167,E167,"aucun des 3"))) -> aucun des 3 | F164: =IF('USER TEC-Tec'!E147=D165,F165,IF('USER TEC-Tec'!E147=D166,F166,IF('USER TEC-Tec'!E147=D167,F167,"aucun des 3"))) -> aucun des 3 | G164: =MIN(E165:E167) -> 20 | H164: =F164 -> aucun des 3 | I164: =MAX(E165:E167) -> 50
D165: médiocre | E165: 50 | F165: =E165 -> 50
D166: correcte | E166: 35 | F166: =E166 -> 35
D167: performante | E167: 20 | F167: =E167 -> 20
B168: durée de fonctionnement | D168: ='USER TEC-Tec'!D158 -> - | E168: =IF(D168=D170,E170,IF(D168=D171,E171,"aucun des 2")) -> aucun des 2 | F168: =IF('USER TEC-Tec'!E158=D170,F170,IF('USER TEC-Tec'!E158=D171,F171,"aucun des 2")) -> aucun des 2 | G168: =MIN(E170:E171) -> 8 | H168: =F168 -> aucun des 2 | I168: =MAX(E170:E171) -> 12
D169: -
D170: fréquente (environ 8 mois) | E170: 8 | F170: =E170 -> 8
D171: permanente (environ 12 mois) | E171: 12 | F171: =E171 -> 12
B172: consommation unitaire | D172: kWh / m² | E172: =IF(OR(E164="aucun des 3",E168="aucun des 2"),"0",E164*E168*10*20/1000) -> 0 | F172: =IF(F168="aucun des 3","",F164*F168*10*20/1000) ->  | G172: =G164*G168*10*20/1000 -> 32 | H172: =H164*H168*10*20/1000 ->  | I172: =I164*I168*10*20/1000 -> 120
B173: surface totale des quatre zones ci-dessus | D173: m² | E173: =E135+E142+E153+E163 -> 0 | F173: =IF($F$6*$F$7=0,0,H173) -> 0 | G173: =G135+G142+G153+G163 -> 0 | H173: =H135+H142+H153+H163 -> 0 | I173: =I135+I142+I153+I163 -> 0
B174: consommation unitaire | D174: kWh / m² | E174: =IF(E173=0,"0",((E135*E141+E142*E152+E153*E162+E163*E172)/E173)) -> 0 | F174: =IF(OR(F172="",F162="",F152="",F141=""),0,IF(F173=0,"",((F135*F141+F142*F152+F153*F162+F163*F172)/F173))) ->  | G174: =IF(G173=0,0,(G135*G141+G142*G152+G153*G162+G163*G172)/G173) -> 0 | H174: =(H135*H141+H142*H152+H153*H162+H163*H172)/H173 ->  | I174: =(I135*I141+I142*I152+I153*I162+I163*I172)/I173 -> 
B175: Fuite de fluide frigorigène | D175: kg HFC | E175: ='USER TEC-Tec'!D164*E177*E178 -> 0 | F175: =F176*F177*F178 -> 0 | G175: =G176*G177*G178 -> 0 | H175: =H176*H177*H178 -> 0 | I175: =I176*I177*I178 -> 0 | J175: kg CO2e / kg HFC | K175: 2000 | L175: =E175*$K175*'USER TEC-Tec'!G164/1000 -> 0 | M175: =G175*$K175/1000 -> 0 | N175: =H175*$K175/1000 -> 0 | O175: =I175*$K175/1000 -> 0 | P175: =(O175-M175)/$E$6*200 ->  | Q175: 3.5 | R175: =IF(L175=0,Q175,IF(L175>O175,0,IF(L175<M175,Q175,(1-(L175-$M175)/($O175-$M175))*$Q175))) -> 3.5 | S175: =(1-(N175-$M175)/($O175-$M175))*$Q175 -> 
B176: puissance installée avec fluide HFC | D176: kW frigo. | E176: =H176 -> 0 | F176: =H176 -> 0 | G176: =90*(G142+G153+G163)/1000 -> 0 | H176: =110*(E142+E153+E163)/1000 -> 0 | I176: =120*(I142+I153+I163)/1000 -> 0
B177: charge en fluide HFC | D177: kg HFC / kW frigo. | E177: =H177 -> 0.44 | F177: =H177 -> 0.44 | G177: 0.2 | H177: =(G177+4*I177)/5 -> 0.44 | I177: 0.5
B178: taux de fuite | D178: % / an | E178: =H178 -> 0.13 | F178: =H178 -> 0.13 | G178: 0.05 | H178: =(G178+4*I178)/5 -> 0.13 | I178: 0.15
B179: Éclairage intérieur | C179: 2 | D179: kWh / an | E179: ='USER TEC-Tec'!D170 -> 0 | F179: =ROUND(F6*F193/100,0)*100 ->  | G179: =G6*G193 -> 0 | H179: =H6*H193 -> 0 | I179: =I6*I193 -> 0 | J179: kg CO2e / kWh | K179: 0.7 | L179: =E179*$K179*'USER TEC-Tec'!G170/1000 -> 0 | M179: =G179*$K179/1000 -> 0 | N179: =H179*$K179/1000 -> 0 | O179: =I179*$K179/1000 -> 0 | P179: =(O179-M179)/$E$6*200 ->  | Q179: =1.5*(1*E180+E181*(1-E180)) -> 1.5 | R179: =IF(L179=0,0,IF(L179>O179,0,IF(L179<M179,Q179,(1-(L179-$M179)/($O179-$M179))*$Q179))) -> 0 | S179: =(1-(N179-$M179)/($O179-$M179))*$Q179 -> 
B180: proportion d'éclairement standard (vs surface de vente) | D180: % std de SU | E180: ='USER TEC-Tec'!D167 -> 1 | F180: 1
D181: fort (surface de vente) | E181: 10 | F181: =E181 -> 10
B182: performance des équipements et optimisation d'installation | D182: ='USER TEC-Tec'!D168 -> - | E182: =IF(D182=D184,E184,IF(D182=D185,E185,IF(D182=D186,E186,"aucun des 3"))) -> aucun des 3 | F182: =IF('USER TEC-Tec'!E168=D184,F184,IF('USER TEC-Tec'!E168=D185,F185,IF('USER TEC-Tec'!E168=D186,F186,"aucun des 3"))) -> aucun des 3 | G182: =MIN(E184:E186) -> 3 | H182: =F182 -> aucun des 3 | I182: =MAX(E184:E186) -> 5
D183: -
D184: faible | E184: 5 | F184: =E184 -> 5
D185: moyenne | E185: 4 | F185: =E185 -> 4
D186: élevée | E186: 3 | F186: =E186 -> 3
B187: plage de fonctionnement | D187: ='USER TEC-Tec'!D169 -> - | E187: =IF(D187=D189,E189,IF(D187=D190,E190,IF(D187=D191,E191,IF(D187=D192,E192,"aucun des 4")))) -> aucun des 4 | F187: =IF('USER TEC-Tec'!E169=D189,F189,IF('USER TEC-Tec'!E169=D190,F190,IF('USER TEC-Tec'!E169=D191,F191,IF('USER TEC-Tec'!E169=D192,F192,"aucun des 4")))) -> aucun des 4 | G187: =MIN(F189:F192) -> 2 | H187: =F187 -> aucun des 4 | I187: =MAX(F189:F192) -> 12
D188: -
D189: 2 heures / jour | E189: 2 | F189: =E189 -> 2
D190: 4 heures / jour | E190: 4 | F190: =E190 -> 4
D191: 7 heures / jour | E191: 7 | F191: =E191 -> 7
D192: 12 heures / jour | E192: 12 | F192: =E192 -> 12
B193: consommation unitaire | D193: kWh / m² | E193: =IF(OR(E182="aucun des 3",E187="aucun des 4"),"",(1*E180+E181*(1-E180))*E182*E187*10*20/1000) ->  | F193: =IF(OR(F182="aucun des 3",F187="aucun des 4"),"",(1*F180+F181*(1-F180))*F182*F187*10*20/1000) ->  | G193: =G182*G187*10*20/1000 -> 1.2 | H193: 7 | I193: 12
B194: Éclairage extérieur | C194: 3 | D194: kWh / an | E194: ='USER TEC-Tec'!D176 -> 0 | F194: =ROUND(F6*F206/100,0)*100 ->  | G194: =G6*G206 -> 0 | H194: =H6*H206 ->  | I194: =I6*I206 -> 0 | J194: kg CO2e / kWh | K194: 0.75 | L194: =E194*$K194*'USER TEC-Tec'!G176/1000 -> 0 | M194: =G194*$K194/1000 -> 0 | N194: =H194*$K194/1000 ->  | O194: =I194*$K194/1000 -> 0 | P194: =(O194-M194)/$E$6*200 ->  | Q194: 1.25 | R194: =IF(L194=0,0,IF(L194>O194,0,IF(L194<M194,Q194,(1-(L194-$M194)/($O194-$M194))*$Q194))) -> 0 | S194: =(1-(N194-$M194)/($O194-$M194))*$Q194 -> 
B195: gestion de l'éclairage | D195: ='USER TEC-Tec'!D174 -> - | E195: =IF(D195=D197,E197,IF(D195=D198,E198,IF(D195=D199,E199,IF(D195=D200,E200,"aucun des 4")))) -> aucun des 4 | F195: =IF('USER TEC-Tec'!E174=D197,F197,IF('USER TEC-Tec'!E174=D198,F198,IF('USER TEC-Tec'!E174=D199,F199,IF('USER TEC-Tec'!E174=D200,F200,"aucun des 4")))) -> aucun des 4 | G195: =MIN(E197:E200) -> 0.2 | H195: =F195 -> aucun des 4 | I195: =MAX(E197:E200) -> 1
D196: -
D197: horloge simple | E197: 1 | F197: =E197 -> 1
D198: horloge astronomique | E198: 0.8 | F198: =E198 -> 0.8
D199: détection de présence | E199: 0.4 | F199: =E199 -> 0.4
D200: interrupteurs temporisés | E200: 0.2 | F200: =E200 -> 0.2
... 308 more rows

Sheet JAUGE TEC-Tec (hidden)
C2: NOTE EVALUATION GLOBALE | P2: DIAGRAMME DE REPARTITION
K3: Coef
I4: ='USER TEC-Tec'!D13 -> 0 | J4: /100 | K4: =I4 -> 0 | P4: CHANTIER | Q4: ='USER TEC-Tec'!D32 -> 0
P5: ENERGIE | Q5: ='USER TEC-Tec'!D144 -> 0
I6: EVAL | J6: NOTES | P6: DEPLACEMENTS | Q6: ='USER TEC-Tec'!D228 -> 0
I7: 0.2 | J7: =J10 -> 0 | L7: =+J7 -> 0 | P7: AUTRES SERVICES | Q7: ='USER TEC-Tec'!D252 -> 0
I8: 0.2 | J8: =(1-J7) -> 1 | L8: 0.21 | M8: taille d'image fixe !!!
I9: 0.2 | J9: =(K4)/100 -> 0 | L9: =100%-L7 -> 1 | P9: TOTAL | Q9: =SUM(Q4:Q7) -> 0
I10: 0.2 | J10: =J9 -> 0
I11: 0.2
I12: 0.2
I14: SEUILS | J14: Seuil 1 | K14: Seuil 2 | L14: Seuil 3 | M14: Seuil 4 | N14: Seuil 5
I15: NOTES | J15: 0-20 | K15: 20-40 | L15: 40-60 | M15: 60-80 | N15: 80-100
I16: % de référence | J16: 0 | K16: 17 | L16: 33 | M16: 50 | N16: 67
J17: =AVERAGE(J18,J16) -> 8.5 | K17: =AVERAGE(K18,K16) -> 25 | L17: =AVERAGE(L18,L16) -> 41.5 | M17: =AVERAGE(M18,M16) -> 58.5 | N17: =AVERAGE(N18,N16) -> 75
J18: 17 | K18: 33 | L18: 50 | M18: 67 | N18: 83
C20: NOTE EVALUATION CHANTIER
I22: ='USER TEC-Tec'!D32 -> 0 | J22: =IF(ISERROR('BASE TEC-Tec'!Q131),1,'BASE TEC-Tec'!Q131) -> 1 | K22: =I22*M22 -> 0 | L22: =100/J22 -> 100 | M22: =0.95*L22 -> 95
I24: EVAL | J24: NOTES
I25: 0.2 | J25: =J28 -> 0 | L25: =+J25 -> 0
I26: 0.2 | J26: =(1-J25) -> 1 | L26: 0.3 | M26: taille d'image fixe !!!
I27: 0.2 | J27: =(K22)/100 -> 0 | L27: =100%-L25 -> 1
I28: 0.2 | J28: =J27 -> 0
I29: 0.2
I30: 0.2
C36: NOTE EVALUATION ENERGIE | Q36: =IF('BASE TEC-Tec'!E281=0,0,'BASE TEC-Tec'!R281) -> 0 | R36: Prod Elec
J37: valeur max | R37: valeur max
I38: ='USER TEC-Tec'!D144 -> 0 | J38: =IF(ISERROR('BASE TEC-Tec'!Q297),1,'BASE TEC-Tec'!Q297) -> 1 | K38: =I38*M38 -> 0 | L38: =100/J38 -> 100 | M38: =0.95*L38 -> 95 | Q38: =+IF(ISERROR('BASE TEC-Tec'!R298),0,'BASE TEC-Tec'!R298) -> 0 | R38: =+J38 -> 1 | S38: =Q38*U38 -> 0 | T38: =100/R38 -> 100 | U38: =0.95*T38 -> 95
I40: EVAL | J40: NOTES | Q40: EVAL | R40: NOTES
I41: 0.2 | J41: =J44 -> 0 | L41: =+J41 -> 0 | O41: =+R41 -> 0 | Q41: 0.2 | R41: =R44 -> 0
I42: 0.2 | J42: =(1-J41) -> 1 | L42: 0.19 | M42: taille d'image fixe !!! | O42: 0.11 | Q42: 0.2 | R42: =(1-R41) -> 1
I43: 0.2 | J43: =(K38)/100 -> 0 | L43: =100%-L41 -> 1 | O43: =100%-O41 -> 1 | Q43: 0.2 | R43: =(S38)/100 -> 0
I44: 0.2 | J44: =J43 -> 0 | Q44: 0.2 | R44: =R43 -> 0
I45: 0.2 | Q45: 0.2
I46: 0.2 | Q46: 0.2
C50: NOTE EVALUATION DEPLACEMENT
J51: valeur max
I52: ='USER TEC-Tec'!D228 -> 0 | J52: =IF(ISERROR('BASE TEC-Tec'!Q367),1,'BASE TEC-Tec'!Q367) -> 1 | K52: =I52*M52 -> 0 | L52: =100/J52 -> 100 | M52: =0.95*L52 -> 95
I54: EVAL | J54: NOTES
I55: 0.2 | J55: =J58 -> 0 | L55: =+J55 -> 0
I56: 0.2 | J56: =(1-J55) -> 1 | L56: 0.24 | M56: taille d'image fixe !!!
I57: 0.2 | J57: =(K52)/100 -> 0 | L57: =100%-L55 -> 1
I58: 0.2 | J58: =J57 -> 0
I59: 0.2
I60: 0.2

Sheet CHARTE TEC-Tec (hidden)

Sheet Facteurs de calcul
A1: Facteurs de calcul de TEC-Tec
B2: ='BASE TEC-Tec'!J3 -> Unité | C2: ='BASE TEC-Tec'!K3 -> Valeur
A3: CONSTRUCTION
A4: ='BASE TEC-Tec'!B19 -> Conception | B4: =IF('BASE TEC-Tec'!J19="","",'BASE TEC-Tec'!J19) ->  | C4: =IF('BASE TEC-Tec'!K19="","",'BASE TEC-Tec'!K19) -> 
A5: ='BASE TEC-Tec'!B20 -> trajets entre La Réunion et la métropole | B5: =IF('BASE TEC-Tec'!J20="","",'BASE TEC-Tec'!J20) -> kg CO2e / ARM | C5: =IF('BASE TEC-Tec'!K20="","",'BASE TEC-Tec'!K20) -> 4000
A6: ='BASE TEC-Tec'!B22 -> Changement d'affectation des sols | B6: =IF('BASE TEC-Tec'!J22="","",'BASE TEC-Tec'!J22) ->  | C6: =IF('BASE TEC-Tec'!K22="","",'BASE TEC-Tec'!K22) -> 
A7: ='BASE TEC-Tec'!B23 -> artificialisation nette | B7: =IF('BASE TEC-Tec'!J23="","",'BASE TEC-Tec'!J23) -> kgCO2e / m² | C7: =IF('BASE TEC-Tec'!K23="","",'BASE TEC-Tec'!K23) -> 20
A8: ='BASE TEC-Tec'!B24 -> Voirie et traitement paysager | B8: =IF('BASE TEC-Tec'!J24="","",'BASE TEC-Tec'!J24) ->  | C8: =IF('BASE TEC-Tec'!K24="","",'BASE TEC-Tec'!K24) -> 
A9: ='BASE TEC-Tec'!B25 -> végétalisation (toiture végétalisée inclue) | B9: =IF('BASE TEC-Tec'!J25="","",'BASE TEC-Tec'!J25) -> kgCO2e / m² | C9: =IF('BASE TEC-Tec'!K25="","",'BASE TEC-Tec'!K25) -> -10
A10: ='BASE TEC-Tec'!B26 -> enrobé neuf | B10: =IF('BASE TEC-Tec'!J26="","",'BASE TEC-Tec'!J26) -> kgCO2e / m² | C10: =IF('BASE TEC-Tec'!K26="","",'BASE TEC-Tec'!K26) -> 60
A11: ='BASE TEC-Tec'!B27 -> dallage en béton | B11: =IF('BASE TEC-Tec'!J27="","",'BASE TEC-Tec'!J27) -> kgCO2e / m² | C11: =IF('BASE TEC-Tec'!K27="","",'BASE TEC-Tec'!K27) -> 60
A12: ='BASE TEC-Tec'!B28 -> pavage béton enherbé | B12: =IF('BASE TEC-Tec'!J28="","",'BASE TEC-Tec'!J28) -> kgCO2e / m² | C12: =IF('BASE TEC-Tec'!K28="","",'BASE TEC-Tec'!K28) -> 25
A13: ='BASE TEC-Tec'!B29 -> enrobé neuf | B13: =IF('BASE TEC-Tec'!J29="","",'BASE TEC-Tec'!J29) -> kgCO2e / m² | C13: =IF('BASE TEC-Tec'!K29="","",'BASE TEC-Tec'!K29) -> 40
A14: ='BASE TEC-Tec'!B30 -> dallage en béton | B14: =IF('BASE TEC-Tec'!J30="","",'BASE TEC-Tec'!J30) -> kgCO2e / m² | C14: =IF('BASE TEC-Tec'!K30="","",'BASE TEC-Tec'!K30) -> 50
A15: ='BASE TEC-Tec'!B31 -> matériau perméable | B15: =IF('BASE TEC-Tec'!J31="","",'BASE TEC-Tec'!J31) -> kgCO2e / m² | C15: =IF('BASE TEC-Tec'!K31="","",'BASE TEC-Tec'!K31) -> 20
A16: ='BASE TEC-Tec'!B32 -> murets maçonnés | B16: =IF('BASE TEC-Tec'!J32="","",'BASE TEC-Tec'!J32) -> kgCO2e / m² | C16: =IF('BASE TEC-Tec'!K32="","",'BASE TEC-Tec'!K32) -> 200
A17: ='BASE TEC-Tec'!B33 -> mur de soutènement | B17: =IF('BASE TEC-Tec'!J33="","",'BASE TEC-Tec'!J33) -> kgCO2e / m² | C17: =IF('BASE TEC-Tec'!K33="","",'BASE TEC-Tec'!K33) -> 40
A18: ='BASE TEC-Tec'!B36 -> Fondations | B18: =IF('BASE TEC-Tec'!J36="","",'BASE TEC-Tec'!J36) ->  | C18: =IF('BASE TEC-Tec'!K36="","",'BASE TEC-Tec'!K36) -> 
A19: ='BASE TEC-Tec'!B37 -> terrassements généraux | B19: =IF('BASE TEC-Tec'!J37="","",'BASE TEC-Tec'!J37) -> kg CO2e / m³ | C19: =IF('BASE TEC-Tec'!K37="","",'BASE TEC-Tec'!K37) -> 10
A20: ='BASE TEC-Tec'!B38 -> nivellement dans la roche | B20: =IF('BASE TEC-Tec'!J38="","",'BASE TEC-Tec'!J38) -> kg CO2e / m³ | C20: =IF('BASE TEC-Tec'!K38="","",'BASE TEC-Tec'!K38) -> 10
A21: ='BASE TEC-Tec'!D41 -> sans | B21: m | C21: ='BASE TEC-Tec'!E41 -> 0
A22: ='BASE TEC-Tec'!D42 -> moins d'un mètre | B22: m | C22: ='BASE TEC-Tec'!E42 -> 0.6666666667
A23: ='BASE TEC-Tec'!D43 -> environ deux mètres | B23: m | C23: ='BASE TEC-Tec'!E43 -> 2
A24: ='BASE TEC-Tec'!B44 -> pieux béton | B24: =IF('BASE TEC-Tec'!J44="","",'BASE TEC-Tec'!J44) -> kgCO2e / m² | C24: =IF('BASE TEC-Tec'!K44="","",'BASE TEC-Tec'!K44) -> 36
A25: ='BASE TEC-Tec'!B45 -> micropieux | B25: =IF('BASE TEC-Tec'!J45="","",'BASE TEC-Tec'!J45) -> kgCO2e / m² | C25: =IF('BASE TEC-Tec'!K45="","",'BASE TEC-Tec'!K45) -> 24
A26: ='BASE TEC-Tec'!B46 -> radier | B26: =IF('BASE TEC-Tec'!J46="","",'BASE TEC-Tec'!J46) -> kgCO2e / m² | C26: =IF('BASE TEC-Tec'!K46="","",'BASE TEC-Tec'!K46) -> 60
A27: ='BASE TEC-Tec'!B47 -> superficielles | B27: =IF('BASE TEC-Tec'!J47="","",'BASE TEC-Tec'!J47) -> kgCO2e / m² | C27: =IF('BASE TEC-Tec'!K47="","",'BASE TEC-Tec'!K47) -> 18
A28: ='BASE TEC-Tec'!B48 -> Infrastructure | B28: =IF('BASE TEC-Tec'!J48="","",'BASE TEC-Tec'!J48) ->  | C28: =IF('BASE TEC-Tec'!K48="","",'BASE TEC-Tec'!K48) -> 
A29: ='BASE TEC-Tec'!B49 -> sous-sols | B29: =IF('BASE TEC-Tec'!J49="","",'BASE TEC-Tec'!J49) -> kgCO2e / m² | C29: =IF('BASE TEC-Tec'!K49="","",'BASE TEC-Tec'!K49) -> 144
A30: ='BASE TEC-Tec'!B50 -> plus-value poutres de reprise | B30: =IF('BASE TEC-Tec'!J50="","",'BASE TEC-Tec'!J50) -> kgCO2e / m² | C30: =IF('BASE TEC-Tec'!K50="","",'BASE TEC-Tec'!K50) -> 35
A31: ='BASE TEC-Tec'!B51 -> Planchers | B31: =IF('BASE TEC-Tec'!J51="","",'BASE TEC-Tec'!J51) ->  | C31: =IF('BASE TEC-Tec'!K51="","",'BASE TEC-Tec'!K51) -> 
A32: ='BASE TEC-Tec'!B52 -> béton | B32: =IF('BASE TEC-Tec'!J52="","",'BASE TEC-Tec'!J52) -> kgCO2e / m² | C32: =IF('BASE TEC-Tec'!K52="","",'BASE TEC-Tec'!K52) -> 90
A33: ='BASE TEC-Tec'!B53 -> collaborant métal-béton | B33: =IF('BASE TEC-Tec'!J53="","",'BASE TEC-Tec'!J53) -> kgCO2e / m² | C33: =IF('BASE TEC-Tec'!K53="","",'BASE TEC-Tec'!K53) -> 120
A34: ='BASE TEC-Tec'!B54 -> collaborant bois-béton | B34: =IF('BASE TEC-Tec'!J54="","",'BASE TEC-Tec'!J54) -> kgCO2e / m² | C34: =IF('BASE TEC-Tec'!K54="","",'BASE TEC-Tec'!K54) -> 0
A35: ='BASE TEC-Tec'!B55 -> ossature et platelage bois | B35: =IF('BASE TEC-Tec'!J55="","",'BASE TEC-Tec'!J55) -> kgCO2e / m² | C35: =IF('BASE TEC-Tec'!K55="","",'BASE TEC-Tec'!K55) -> -20
A36: ='BASE TEC-Tec'!B56 -> bois plein (CLT) | B36: =IF('BASE TEC-Tec'!J56="","",'BASE TEC-Tec'!J56) -> kgCO2e / m² | C36: =IF('BASE TEC-Tec'!K56="","",'BASE TEC-Tec'!K56) -> -80
A37: ='BASE TEC-Tec'!B57 -> Ossature principale | B37: =IF('BASE TEC-Tec'!J57="","",'BASE TEC-Tec'!J57) ->  | C37: =IF('BASE TEC-Tec'!K57="","",'BASE TEC-Tec'!K57) -> 
A38: ='BASE TEC-Tec'!B58 -> voiles de refend en béton | B38: =IF('BASE TEC-Tec'!J58="","",'BASE TEC-Tec'!J58) -> kgCO2e / m² | C38: =IF('BASE TEC-Tec'!K58="","",'BASE TEC-Tec'!K58) -> 71.4
A39: ='BASE TEC-Tec'!B59 -> murs en matériaux locaux | B39: =IF('BASE TEC-Tec'!J59="","",'BASE TEC-Tec'!J59) -> kgCO2e / m² | C39: =IF('BASE TEC-Tec'!K59="","",'BASE TEC-Tec'!K59) -> 15
A40: ='BASE TEC-Tec'!B60 -> ossature béton | B40: =IF('BASE TEC-Tec'!J60="","",'BASE TEC-Tec'!J60) -> kgCO2e / m² | C40: =IF('BASE TEC-Tec'!K60="","",'BASE TEC-Tec'!K60) -> 21
A41: ='BASE TEC-Tec'!B61 -> ossature métal | B41: =IF('BASE TEC-Tec'!J61="","",'BASE TEC-Tec'!J61) -> kgCO2e / m² | C41: =IF('BASE TEC-Tec'!K61="","",'BASE TEC-Tec'!K61) -> 36
A42: ='BASE TEC-Tec'!B62 -> ossature bois | B42: =IF('BASE TEC-Tec'!J62="","",'BASE TEC-Tec'!J62) -> kgCO2e / m² | C42: =IF('BASE TEC-Tec'!K62="","",'BASE TEC-Tec'!K62) -> -15
A43: ='BASE TEC-Tec'!B63 -> bois massif (CLT) | B43: =IF('BASE TEC-Tec'!J63="","",'BASE TEC-Tec'!J63) -> kgCO2e / m² | C43: =IF('BASE TEC-Tec'!K63="","",'BASE TEC-Tec'!K63) -> -30
A44: ='BASE TEC-Tec'!B64 -> Remplissage de façade | B44: =IF('BASE TEC-Tec'!J64="","",'BASE TEC-Tec'!J64) ->  | C44: =IF('BASE TEC-Tec'!K64="","",'BASE TEC-Tec'!K64) -> 
A45: ='BASE TEC-Tec'!B65 -> voiles béton | B45: =IF('BASE TEC-Tec'!J65="","",'BASE TEC-Tec'!J65) -> kgCO2e / m² | C45: =IF('BASE TEC-Tec'!K65="","",'BASE TEC-Tec'!K65) -> 70
A46: ='BASE TEC-Tec'!B66 -> maçonnerie | B46: =IF('BASE TEC-Tec'!J66="","",'BASE TEC-Tec'!J66) -> kgCO2e / m² | C46: =IF('BASE TEC-Tec'!K66="","",'BASE TEC-Tec'!K66) -> 35
A47: ='BASE TEC-Tec'!B67 -> métallique | B47: =IF('BASE TEC-Tec'!J67="","",'BASE TEC-Tec'!J67) -> kgCO2e / m² | C47: =IF('BASE TEC-Tec'!K67="","",'BASE TEC-Tec'!K67) -> 80
A48: ='BASE TEC-Tec'!B68 -> mur en terre | B48: =IF('BASE TEC-Tec'!J68="","",'BASE TEC-Tec'!J68) -> kgCO2e / m² | C48: =IF('BASE TEC-Tec'!K68="","",'BASE TEC-Tec'!K68) -> 5
A49: ='BASE TEC-Tec'!B69 -> ossature bois | B49: =IF('BASE TEC-Tec'!J69="","",'BASE TEC-Tec'!J69) -> kgCO2e / m² | C49: =IF('BASE TEC-Tec'!K69="","",'BASE TEC-Tec'!K69) -> -15
A50: ='BASE TEC-Tec'!B70 -> mur rideau acier et aluminium | B50: =IF('BASE TEC-Tec'!J70="","",'BASE TEC-Tec'!J70) -> kgCO2e / m² | C50: =IF('BASE TEC-Tec'!K70="","",'BASE TEC-Tec'!K70) -> 130
A51: ='BASE TEC-Tec'!B71 -> châssis acier vitré | B51: =IF('BASE TEC-Tec'!J71="","",'BASE TEC-Tec'!J71) -> kgCO2e / m² | C51: =IF('BASE TEC-Tec'!K71="","",'BASE TEC-Tec'!K71) -> 115
A52: ='BASE TEC-Tec'!B72 -> châssis aluminium vitré | B52: =IF('BASE TEC-Tec'!J72="","",'BASE TEC-Tec'!J72) -> kgCO2e / m² | C52: =IF('BASE TEC-Tec'!K72="","",'BASE TEC-Tec'!K72) -> 105
A53: ='BASE TEC-Tec'!B73 -> châssis PVC vitré | B53: =IF('BASE TEC-Tec'!J73="","",'BASE TEC-Tec'!J73) -> kgCO2e / m² | C53: =IF('BASE TEC-Tec'!K73="","",'BASE TEC-Tec'!K73) -> 85
A54: ='BASE TEC-Tec'!B74 -> châssis bois vitré | B54: =IF('BASE TEC-Tec'!J74="","",'BASE TEC-Tec'!J74) -> kgCO2e / m² | C54: =IF('BASE TEC-Tec'!K74="","",'BASE TEC-Tec'!K74) -> 40
A55: ='BASE TEC-Tec'!B75 -> Revêtement de façade | B55: =IF('BASE TEC-Tec'!J75="","",'BASE TEC-Tec'!J75) ->  | C55: =IF('BASE TEC-Tec'!K75="","",'BASE TEC-Tec'!K75) -> 
A56: ='BASE TEC-Tec'!B76 -> peinture | B56: =IF('BASE TEC-Tec'!J76="","",'BASE TEC-Tec'!J76) -> kgCO2e / m² | C56: =IF('BASE TEC-Tec'!K76="","",'BASE TEC-Tec'!K76) -> 1
A57: ='BASE TEC-Tec'!B77 -> enduit | B57: =IF('BASE TEC-Tec'!J77="","",'BASE TEC-Tec'!J77) -> kgCO2e / m² | C57: =IF('BASE TEC-Tec'!K77="","",'BASE TEC-Tec'!K77) -> 8
A58: ='BASE TEC-Tec'!B78 -> briquette ou pierre | B58: =IF('BASE TEC-Tec'!J78="","",'BASE TEC-Tec'!J78) -> kgCO2e / m² | C58: =IF('BASE TEC-Tec'!K78="","",'BASE TEC-Tec'!K78) -> 20
A59: ='BASE TEC-Tec'!B79 -> panneaux minéraux | B59: =IF('BASE TEC-Tec'!J79="","",'BASE TEC-Tec'!J79) -> kgCO2e / m² | C59: =IF('BASE TEC-Tec'!K79="","",'BASE TEC-Tec'!K79) -> 45
A60: ='BASE TEC-Tec'!B80 -> bardage acier | B60: =IF('BASE TEC-Tec'!J80="","",'BASE TEC-Tec'!J80) -> kgCO2e / m² | C60: =IF('BASE TEC-Tec'!K80="","",'BASE TEC-Tec'!K80) -> 35
A61: ='BASE TEC-Tec'!B81 -> bardage aluminium | B61: =IF('BASE TEC-Tec'!J81="","",'BASE TEC-Tec'!J81) -> kgCO2e / m² | C61: =IF('BASE TEC-Tec'!K81="","",'BASE TEC-Tec'!K81) -> 80
A62: ='BASE TEC-Tec'!B82 -> bardage bois | B62: =IF('BASE TEC-Tec'!J82="","",'BASE TEC-Tec'!J82) -> kgCO2e / m² | C62: =IF('BASE TEC-Tec'!K82="","",'BASE TEC-Tec'!K82) -> 0
A63: ='BASE TEC-Tec'!B83 -> Protections solaires extérieures | B63: =IF('BASE TEC-Tec'!J83="","",'BASE TEC-Tec'!J83) ->  | C63: =IF('BASE TEC-Tec'!K83="","",'BASE TEC-Tec'!K83) -> 
A64: ='BASE TEC-Tec'!B84 -> brise-soleil en toile ou en bois | B64: =IF('BASE TEC-Tec'!J84="","",'BASE TEC-Tec'!J84) -> kgCO2e / m² | C64: =IF('BASE TEC-Tec'!K84="","",'BASE TEC-Tec'!K84) -> 0
A65: ='BASE TEC-Tec'!B85 -> brise-soleil en aluminium | B65: =IF('BASE TEC-Tec'!J85="","",'BASE TEC-Tec'!J85) -> kgCO2e / m² | C65: =IF('BASE TEC-Tec'!K85="","",'BASE TEC-Tec'!K85) -> 100
A66: ='BASE TEC-Tec'!B86 -> motorisation des brise-soleil | B66: =IF('BASE TEC-Tec'!J86="","",'BASE TEC-Tec'!J86) -> kgCO2e / m² | C66: =IF('BASE TEC-Tec'!K86="","",'BASE TEC-Tec'!K86) -> 10
A67: ='BASE TEC-Tec'!B91 -> casquette (et/ou joue) bois | B67: =IF('BASE TEC-Tec'!J91="","",'BASE TEC-Tec'!J91) -> kgCO2e / m² | C67: =IF('BASE TEC-Tec'!K91="","",'BASE TEC-Tec'!K91) -> -10
A68: ='BASE TEC-Tec'!B92 -> casquette (et/ou joue) métal | B68: =IF('BASE TEC-Tec'!J92="","",'BASE TEC-Tec'!J92) -> kgCO2e / m² | C68: =IF('BASE TEC-Tec'!K92="","",'BASE TEC-Tec'!K92) -> 30
A69: ='BASE TEC-Tec'!B93 -> casquette (et/ou joue) béton | B69: =IF('BASE TEC-Tec'!J93="","",'BASE TEC-Tec'!J93) -> kgCO2e / m² | C69: =IF('BASE TEC-Tec'!K93="","",'BASE TEC-Tec'!K93) -> 40
A70: ='BASE TEC-Tec'!B94 -> Toiture | B70: =IF('BASE TEC-Tec'!J94="","",'BASE TEC-Tec'!J94) ->  | C70: =IF('BASE TEC-Tec'!K94="","",'BASE TEC-Tec'!K94) -> 
A71: ='BASE TEC-Tec'!B95 -> dalle béton | B71: =IF('BASE TEC-Tec'!J95="","",'BASE TEC-Tec'!J95) -> kgCO2e / m² | C71: =IF('BASE TEC-Tec'!K95="","",'BASE TEC-Tec'!K95) -> 108
A72: ='BASE TEC-Tec'!B96 -> plancher bois | B72: =IF('BASE TEC-Tec'!J96="","",'BASE TEC-Tec'!J96) -> kgCO2e / m² | C72: =IF('BASE TEC-Tec'!K96="","",'BASE TEC-Tec'!K96) -> -20
A73: ='BASE TEC-Tec'!B97 -> charpente métallique | B73: =IF('BASE TEC-Tec'!J97="","",'BASE TEC-Tec'!J97) -> kgCO2e / m² | C73: =IF('BASE TEC-Tec'!K97="","",'BASE TEC-Tec'!K97) -> 40
A74: ='BASE TEC-Tec'!B98 -> charpente bois | B74: =IF('BASE TEC-Tec'!J98="","",'BASE TEC-Tec'!J98) -> kgCO2e / m² | C74: =IF('BASE TEC-Tec'!K98="","",'BASE TEC-Tec'!K98) -> -20
A75: ='BASE TEC-Tec'!B99 -> revêtement d'étanchéité | B75: =IF('BASE TEC-Tec'!J99="","",'BASE TEC-Tec'!J99) -> kgCO2e / m² | C75: =IF('BASE TEC-Tec'!K99="","",'BASE TEC-Tec'!K99) -> 20
A76: ='BASE TEC-Tec'!B100 -> couverte en tôle | B76: =IF('BASE TEC-Tec'!J100="","",'BASE TEC-Tec'!J100) -> kgCO2e / m² | C76: =IF('BASE TEC-Tec'!K100="","",'BASE TEC-Tec'!K100) -> 20
A77: ='BASE TEC-Tec'!B101 -> couverture biosourcée | B77: =IF('BASE TEC-Tec'!J101="","",'BASE TEC-Tec'!J101) -> kgCO2e / m² | C77: =IF('BASE TEC-Tec'!K101="","",'BASE TEC-Tec'!K101) -> -5
A78: ='BASE TEC-Tec'!B102 -> Isolation | B78: =IF('BASE TEC-Tec'!J102="","",'BASE TEC-Tec'!J102) ->  | C78: =IF('BASE TEC-Tec'!K102="","",'BASE TEC-Tec'!K102) -> 
A79: ='BASE TEC-Tec'!B103 -> toiture | B79: =IF('BASE TEC-Tec'!J103="","",'BASE TEC-Tec'!J103) -> kg CO2e / m³ | C79: =IF('BASE TEC-Tec'!K103="","",'BASE TEC-Tec'!K103) -> 10
A80: ='BASE TEC-Tec'!D106 -> sans isolant | B80: coefficient | C80: ='BASE TEC-Tec'!E106 -> 0
A81: ='BASE TEC-Tec'!D107 -> isolant conventionnel | B81: coefficient | C81: ='BASE TEC-Tec'!E107 -> 1
A82: ='BASE TEC-Tec'!D108 -> isolant biosourcé | B82: coefficient | C82: ='BASE TEC-Tec'!E108 -> -1
A83: ='BASE TEC-Tec'!B109 -> façades avec isolant conventionnel | B83: =IF('BASE TEC-Tec'!J109="","",'BASE TEC-Tec'!J109) -> kgCO2e / m² | C83: =IF('BASE TEC-Tec'!K109="","",'BASE TEC-Tec'!K109) -> 20
A84: ='BASE TEC-Tec'!B110 -> façades avec isolant biosourcé | B84: =IF('BASE TEC-Tec'!J110="","",'BASE TEC-Tec'!J110) -> kgCO2e / m² | C84: =IF('BASE TEC-Tec'!K110="","",'BASE TEC-Tec'!K110) -> -10
A85: ='BASE TEC-Tec'!B111 -> Habillages intérieurs | B85: =IF('BASE TEC-Tec'!J111="","",'BASE TEC-Tec'!J111) ->  | C85: =IF('BASE TEC-Tec'!K111="","",'BASE TEC-Tec'!K111) -> 
A86: ='BASE TEC-Tec'!B112 -> faux-plafond minéral | B86: =IF('BASE TEC-Tec'!J112="","",'BASE TEC-Tec'!J112) -> kgCO2e / m² | C86: =IF('BASE TEC-Tec'!K112="","",'BASE TEC-Tec'!K112) -> 25
A87: ='BASE TEC-Tec'!B113 -> faux-plancher technique | B87: =IF('BASE TEC-Tec'!J113="","",'BASE TEC-Tec'!J113) -> kgCO2e / m² | C87: =IF('BASE TEC-Tec'!K113="","",'BASE TEC-Tec'!K113) -> 40
A88: ='BASE TEC-Tec'!B114 -> autres | B88: =IF('BASE TEC-Tec'!J114="","",'BASE TEC-Tec'!J114) ->  | C88: =IF('BASE TEC-Tec'!K114="","",'BASE TEC-Tec'!K114) -> 
A89: ='BASE TEC-Tec'!B115 -> Production locale d'EnR | B89: =IF('BASE TEC-Tec'!J115="","",'BASE TEC-Tec'!J115) -> m² PV / kWc | C89: =IF('BASE TEC-Tec'!K115="","",'BASE TEC-Tec'!K115) -> 8
A90: ='BASE TEC-Tec'!B116 -> installation solaire thermique | B90: =IF('BASE TEC-Tec'!J116="","",'BASE TEC-Tec'!J116) -> kgCO2e / m² | C90: =IF('BASE TEC-Tec'!K116="","",'BASE TEC-Tec'!K116) -> 80
A91: ='BASE TEC-Tec'!B117 -> installation photovoltaïque sans batterie | B91: =IF('BASE TEC-Tec'!J117="","",'BASE TEC-Tec'!J117) -> kgCO2e / kWc | C91: =IF('BASE TEC-Tec'!K117="","",'BASE TEC-Tec'!K117) -> 2000
A92: ='BASE TEC-Tec'!B118 -> installation photovoltaïque avec batteries | B92: =IF('BASE TEC-Tec'!J118="","",'BASE TEC-Tec'!J118) -> kgCO2e / kWc | C92: =IF('BASE TEC-Tec'!K118="","",'BASE TEC-Tec'!K118) -> 3000
A93: ='BASE TEC-Tec'!B119 -> Variation d'albédo | B93: =IF('BASE TEC-Tec'!J119="","",'BASE TEC-Tec'!J119) ->  | C93: =IF('BASE TEC-Tec'!K119="","",'BASE TEC-Tec'!K119) -> 
A94: ='BASE TEC-Tec'!B120 -> ton presque inchangé | B94: =IF('BASE TEC-Tec'!J120="","",'BASE TEC-Tec'!J120) -> kgCO2e / m² | C94: =IF('BASE TEC-Tec'!K120="","",'BASE TEC-Tec'!K120) -> 0
A95: ='BASE TEC-Tec'!B121 -> fonçage (couleur foncée → noir) | B95: =IF('BASE TEC-Tec'!J121="","",'BASE TEC-Tec'!J121) -> kgCO2e / m² | C95: =IF('BASE TEC-Tec'!K121="","",'BASE TEC-Tec'!K121) -> 32
A96: ='BASE TEC-Tec'!B122 -> éclaircissement (couleur foncée → couleur moyenne) | B96: =IF('BASE TEC-Tec'!J122="","",'BASE TEC-Tec'!J122) -> kgCO2e / m² | C96: =IF('BASE TEC-Tec'!K122="","",'BASE TEC-Tec'!K122) -> -48
A97: ='BASE TEC-Tec'!B123 -> fort éclaircissement (couleur foncée → couleur très claire) | B97: =IF('BASE TEC-Tec'!J123="","",'BASE TEC-Tec'!J123) -> kgCO2e / m² | C97: =IF('BASE TEC-Tec'!K123="","",'BASE TEC-Tec'!K123) -> -96
A98: ='BASE TEC-Tec'!B124 -> Installation de chantier | B98: kgCO2e/SdP | C98: 30
A99: ='BASE TEC-Tec'!D127 -> conventionnelle | B99: coefficient | C99: ='BASE TEC-Tec'!E127 -> 1
A100: ='BASE TEC-Tec'!D128 -> chantier vert | B100: coefficient | C100: ='BASE TEC-Tec'!E128 -> 0.8
A101: ='BASE TEC-Tec'!B131 -> Autres corps d'état | B101: =IF('BASE TEC-Tec'!J131="","",'BASE TEC-Tec'!J131) -> kgCO2e / m² de SU | C101: =IF('BASE TEC-Tec'!K131="","",'BASE TEC-Tec'!K131) -> 100 | E101: =_xlfn.FLOOR.MATH(25648,-2,0) -> 25648
A103: ENERGIE | B103: =IF('BASE TEC-Tec'!J129="","",'BASE TEC-Tec'!J129) ->  | C103: =IF('BASE TEC-Tec'!K129="","",'BASE TEC-Tec'!K129) -> 
A104: ='BASE TEC-Tec'!B134 -> Rafraîchissement pour le confort | B104: =IF('BASE TEC-Tec'!J134="","",'BASE TEC-Tec'!J134) -> kg CO2e / kWh | C104: =IF('BASE TEC-Tec'!K134="","",'BASE TEC-Tec'!K134) -> 0.65
A105: ='BASE TEC-Tec'!B135 -> zone en ventilation naturelle + brasseurs d'air | B105: =IF('BASE TEC-Tec'!J135="","",'BASE TEC-Tec'!J135) ->  | C105: =IF('BASE TEC-Tec'!K135="","",'BASE TEC-Tec'!K135) -> 
A106: ='BASE TEC-Tec'!B136 -> performance de l'enveloppe et de son environnement | B106: =IF('BASE TEC-Tec'!J136="","",'BASE TEC-Tec'!J136) ->  | C106: =IF('BASE TEC-Tec'!K136="","",'BASE TEC-Tec'!K136) -> 
A107: ='BASE TEC-Tec'!D138 -> médiocre | B107: W / m² | C107: ='BASE TEC-Tec'!E138 -> 6
A108: ='BASE TEC-Tec'!D139 -> correcte | B108: W / m² | C108: ='BASE TEC-Tec'!E139 -> 4
A109: ='BASE TEC-Tec'!D140 -> performante | B109: W / m² | C109: ='BASE TEC-Tec'!E140 -> 3
A110: ='BASE TEC-Tec'!B142 -> zone en climatisation + ventilation naturelle + brasseurs d'air | B110: =IF('BASE TEC-Tec'!J142="","",'BASE TEC-Tec'!J142) ->  | C110: =IF('BASE TEC-Tec'!K142="","",'BASE TEC-Tec'!K142) -> 
A111: ='BASE TEC-Tec'!B143 -> performance de l'enveloppe et de son environnement | B111: =IF('BASE TEC-Tec'!J143="","",'BASE TEC-Tec'!J143) ->  | C111: =IF('BASE TEC-Tec'!K143="","",'BASE TEC-Tec'!K143) -> 
A112: ='BASE TEC-Tec'!D144 -> médiocre | B112: W / m² | C112: ='BASE TEC-Tec'!E144 -> 30
A113: ='BASE TEC-Tec'!D145 -> correcte | B113: W / m² | C113: ='BASE TEC-Tec'!E145 -> 20
A114: ='BASE TEC-Tec'!D146 -> performante | B114: W / m² | C114: ='BASE TEC-Tec'!E146 -> 10
A115: ='BASE TEC-Tec'!B147 -> durée de fonctionnement de la climatisation | B115: =IF('BASE TEC-Tec'!J147="","",'BASE TEC-Tec'!J147) ->  | C115: =IF('BASE TEC-Tec'!K147="","",'BASE TEC-Tec'!K147) -> 
A116: ='BASE TEC-Tec'!D149 -> très faible (environ 1 mois 1/2) | B116: mois | C116: ='BASE TEC-Tec'!E149 -> 1.5
A117: ='BASE TEC-Tec'!D150 -> occasionnelle (environ 3 mois) | B117: mois | C117: ='BASE TEC-Tec'!E150 -> 3
A118: ='BASE TEC-Tec'!D151 -> fréquente (environ 6 mois) | B118: mois | C118: ='BASE TEC-Tec'!E151 -> 6
A119: ='BASE TEC-Tec'!B153 -> zone en climatisation + brasseurs d'air | B119: =IF('BASE TEC-Tec'!J153="","",'BASE TEC-Tec'!J153) ->  | C119: =IF('BASE TEC-Tec'!K153="","",'BASE TEC-Tec'!K153) -> 
A120: ='BASE TEC-Tec'!B154 -> performance de l'enveloppe et de son environnement | B120: =IF('BASE TEC-Tec'!J154="","",'BASE TEC-Tec'!J154) ->  | C120: =IF('BASE TEC-Tec'!K154="","",'BASE TEC-Tec'!K154) -> 
A121: ='BASE TEC-Tec'!D155 -> médiocre | B121: W / m² | C121: ='BASE TEC-Tec'!E155 -> 30
A122: ='BASE TEC-Tec'!D156 -> correcte | B122: W / m² | C122: ='BASE TEC-Tec'!E156 -> 20
A123: ='BASE TEC-Tec'!D157 -> performante | B123: W / m² | C123: ='BASE TEC-Tec'!E157 -> 10
A124: ='BASE TEC-Tec'!B158 -> durée de fonctionnement de la climatisation | B124: =IF('BASE TEC-Tec'!J156="","",'BASE TEC-Tec'!J156) ->  | C124: =IF('BASE TEC-Tec'!K158="","",'BASE TEC-Tec'!K158) -> 
A125: ='BASE TEC-Tec'!D160 -> fréquente (environ 8 mois) | B125: mois | C125: ='BASE TEC-Tec'!E160 -> 8
A126: ='BASE TEC-Tec'!D161 -> permanente (environ 12 mois) | B126: mois | C126: ='BASE TEC-Tec'!E161 -> 12
A127: ='BASE TEC-Tec'!B163 -> zone en climatisation seule (hors locaux techniques) | B127: =IF('BASE TEC-Tec'!J163="","",'BASE TEC-Tec'!J163) ->  | C127: =IF('BASE TEC-Tec'!K163="","",'BASE TEC-Tec'!K163) -> 
A128: ='BASE TEC-Tec'!B164 -> performance de l'enveloppe et de son environnement | B128: =IF('BASE TEC-Tec'!J164="","",'BASE TEC-Tec'!J164) ->  | C128: =IF('BASE TEC-Tec'!K164="","",'BASE TEC-Tec'!K164) -> 
A129: ='BASE TEC-Tec'!D165 -> médiocre | B129: W / m² | C129: ='BASE TEC-Tec'!E165 -> 50
A130: ='BASE TEC-Tec'!D166 -> correcte | B130: W / m² | C130: ='BASE TEC-Tec'!E166 -> 35
A131: ='BASE TEC-Tec'!D167 -> performante | B131: W / m² | C131: ='BASE TEC-Tec'!E167 -> 20
A132: ='BASE TEC-Tec'!B168 -> durée de fonctionnement | B132: =IF('BASE TEC-Tec'!J164="","",'BASE TEC-Tec'!J164) ->  | C132: =IF('BASE TEC-Tec'!K168="","",'BASE TEC-Tec'!K168) -> 
A133: ='BASE TEC-Tec'!D170 -> fréquente (environ 8 mois) | B133: mois | C133: ='BASE TEC-Tec'!E170 -> 8
A134: ='BASE TEC-Tec'!D171 -> permanente (environ 12 mois) | B134: mois | C134: ='BASE TEC-Tec'!E171 -> 12
A135: ='BASE TEC-Tec'!B175 -> Fuite de fluide frigorigène | B135: =IF('BASE TEC-Tec'!J175="","",'BASE TEC-Tec'!J175) -> kg CO2e / kg HFC | C135: =IF('BASE TEC-Tec'!K175="","",'BASE TEC-Tec'!K175) -> 2000
A136: ='BASE TEC-Tec'!B177 -> charge en fluide HFC | B136: ='BASE TEC-Tec'!D177 -> kg HFC / kW frigo. | C136: ='BASE TEC-Tec'!E177 -> 0.44
A137: ='BASE TEC-Tec'!B178 -> taux de fuite | B137: ='BASE TEC-Tec'!D178 -> % / an | C137: ='BASE TEC-Tec'!E178 -> 0.13
A138: ='BASE TEC-Tec'!B179 -> Éclairage intérieur | B138: =IF('BASE TEC-Tec'!J179="","",'BASE TEC-Tec'!J179) -> kg CO2e / kWh | C138: =IF('BASE TEC-Tec'!K179="","",'BASE TEC-Tec'!K179) -> 0.7
A139: ='BASE TEC-Tec'!B180 -> proportion d'éclairement standard (vs surface de vente) | B139: =IF('BASE TEC-Tec'!J180="","",'BASE TEC-Tec'!J180) ->  | C139: =IF('BASE TEC-Tec'!K180="","",'BASE TEC-Tec'!K180) -> 
A140: ='BASE TEC-Tec'!D181 -> fort (surface de vente) | B140: coefficient | C140: ='BASE TEC-Tec'!E181 -> 10
A141: ='BASE TEC-Tec'!B182 -> performance des équipements et optimisation d'installation | B141: =IF('BASE TEC-Tec'!J182="","",'BASE TEC-Tec'!J182) ->  | C141: =IF('BASE TEC-Tec'!K182="","",'BASE TEC-Tec'!K182) -> 
A142: ='BASE TEC-Tec'!D184 -> faible | B142: W / m² | C142: ='BASE TEC-Tec'!E184 -> 5
A143: ='BASE TEC-Tec'!D185 -> moyenne | B143: W / m² | C143: ='BASE TEC-Tec'!E185 -> 4
A144: ='BASE TEC-Tec'!D186 -> élevée | B144: W / m² | C144: ='BASE TEC-Tec'!E186 -> 3
A145: ='BASE TEC-Tec'!B187 -> plage de fonctionnement | B145: =IF('BASE TEC-Tec'!J187="","",'BASE TEC-Tec'!J187) ->  | C145: =IF('BASE TEC-Tec'!K187="","",'BASE TEC-Tec'!K187) -> 
A146: ='BASE TEC-Tec'!D189 -> 2 heures / jour | B146: heures / jour | C146: ='BASE TEC-Tec'!E189 -> 2
A147: ='BASE TEC-Tec'!D190 -> 4 heures / jour | B147: heures / jour | C147: ='BASE TEC-Tec'!E190 -> 4
A148: ='BASE TEC-Tec'!D191 -> 7 heures / jour | B148: heures / jour | C148: ='BASE TEC-Tec'!E191 -> 7
A149: ='BASE TEC-Tec'!D192 -> 12 heures / jour | B149: heures / jour | C149: ='BASE TEC-Tec'!E192 -> 12
A150: ='BASE TEC-Tec'!B194 -> Éclairage extérieur | B150: =IF('BASE TEC-Tec'!J194="","",'BASE TEC-Tec'!J194) -> kg CO2e / kWh | C150: =IF('BASE TEC-Tec'!K194="","",'BASE TEC-Tec'!K194) -> 0.75
A151: ='BASE TEC-Tec'!B195 -> gestion de l'éclairage | B151: =IF('BASE TEC-Tec'!J195="","",'BASE TEC-Tec'!J195) ->  | C151: =IF('BASE TEC-Tec'!K195="","",'BASE TEC-Tec'!K195) -> 
A152: ='BASE TEC-Tec'!D197 -> horloge simple | B152: coefficient | C152: ='BASE TEC-Tec'!E197 -> 1
A153: ='BASE TEC-Tec'!D198 -> horloge astronomique | B153: coefficient | C153: ='BASE TEC-Tec'!E198 -> 0.8
A154: ='BASE TEC-Tec'!D199 -> détection de présence | B154: coefficient | C154: ='BASE TEC-Tec'!E199 -> 0.4
A155: ='BASE TEC-Tec'!D200 -> interrupteurs temporisés | B155: coefficient | C155: ='BASE TEC-Tec'!E200 -> 0.2
A156: ='BASE TEC-Tec'!B201 -> zones éclairées | B156: =IF('BASE TEC-Tec'!J201="","",'BASE TEC-Tec'!J201) ->  | C156: =IF('BASE TEC-Tec'!K201="","",'BASE TEC-Tec'!K201) -> 
A157: ='BASE TEC-Tec'!D203 -> extérieur complet à 20 lux | B157: kWh / m² / an | C157: ='BASE TEC-Tec'!E203*6 -> 9
A158: ='BASE TEC-Tec'!D204 -> ch. piéton à 20 lux + façades | B158: kWh / m² / an | C158: ='BASE TEC-Tec'!E204*6 -> 6
A159: ='BASE TEC-Tec'!D205 -> cheminement piéton à 20 lux | B159: kWh / m² / an | C159: ='BASE TEC-Tec'!E205*6 -> 3
A160: ='BASE TEC-Tec'!B207 -> Traitement d'air technique | B160: =IF('BASE TEC-Tec'!J207="","",'BASE TEC-Tec'!J207) -> kg CO2e / kWh | C160: =IF('BASE TEC-Tec'!K207="","",'BASE TEC-Tec'!K207) -> 0.75
A161: ='BASE TEC-Tec'!B208 -> locaux techniques climatisés | B161: =IF('BASE TEC-Tec'!J208="","",'BASE TEC-Tec'!J208) ->  | C161: =IF('BASE TEC-Tec'!K208="","",'BASE TEC-Tec'!K208) -> 
A162: ='BASE TEC-Tec'!B210 -> Fuite de fluide frigorigène | B162: =IF('BASE TEC-Tec'!J210="","",'BASE TEC-Tec'!J210) -> kg CO2e / kg HFC | C162: =IF('BASE TEC-Tec'!K210="","",'BASE TEC-Tec'!K210) -> 2000
A163: ='BASE TEC-Tec'!B211 -> puissance installée avec fluide HFC | B163: ='BASE TEC-Tec'!D211 -> kg HFC / split | C163: ='BASE TEC-Tec'!E211 -> 2.7
A164: ='BASE TEC-Tec'!B212 -> installation VMC des sanitaires | B164: =IF('BASE TEC-Tec'!J212="","",'BASE TEC-Tec'!J212) ->  | C164: =IF('BASE TEC-Tec'!K212="","",'BASE TEC-Tec'!K212) -> 
A165: ='BASE TEC-Tec'!D214 -> oui | C165: ='BASE TEC-Tec'!E214 -> 1
A166: ='BASE TEC-Tec'!D215 -> non | C166: ='BASE TEC-Tec'!E215 -> 0
A167: ='BASE TEC-Tec'!B216 -> consommation unitaire | B167: ='BASE TEC-Tec'!D216 -> kWh / m² | C167: ='BASE TEC-Tec'!E216 -> 2.2
A168: ='BASE TEC-Tec'!B217 -> Forces motrices | B168: =IF('BASE TEC-Tec'!J217="","",'BASE TEC-Tec'!J217) -> kg CO2e / kWh | C168: =IF('BASE TEC-Tec'!K217="","",'BASE TEC-Tec'!K217) -> 0.75
A169: ='BASE TEC-Tec'!B219 -> consommation unitaire | B169: ='BASE TEC-Tec'!D219 -> kWh / ascenseur | C169: ='BASE TEC-Tec'!E219 -> 1000
A170: ='BASE TEC-Tec'!B220 -> Cuisine | B170: =IF('BASE TEC-Tec'!J220="","",'BASE TEC-Tec'!J220) ->  | C170: =IF('BASE TEC-Tec'!K220="","",'BASE TEC-Tec'!K220) -> 
A171: ='BASE TEC-Tec'!B221 -> consommation de gaz | B171: =IF('BASE TEC-Tec'!J221="","",'BASE TEC-Tec'!J221) -> kg CO2e / kWh | C171: =IF('BASE TEC-Tec'!K221="","",'BASE TEC-Tec'!K221) -> 0.3
A172: ='BASE TEC-Tec'!B222 -> consommation électrique | B172: =IF('BASE TEC-Tec'!J222="","",'BASE TEC-Tec'!J222) -> kg CO2e / kWh | C172: =IF('BASE TEC-Tec'!K222="","",'BASE TEC-Tec'!K222) -> 0.65
A173: ='BASE TEC-Tec'!B223 -> type de cuisine | B173: =IF('BASE TEC-Tec'!J223="","",'BASE TEC-Tec'!J223) ->  | C173: =IF('BASE TEC-Tec'!K223="","",'BASE TEC-Tec'!K223) -> 
A174: ='BASE TEC-Tec'!D225 -> sans cuisine | B174: kWh / m² / an | C174: ='BASE TEC-Tec'!E225 -> 0
A175: ='BASE TEC-Tec'!D226 -> liaison chaude | B175: kWh / m² / an | C175: ='BASE TEC-Tec'!E226 -> 130
A176: ='BASE TEC-Tec'!D227 -> liaison froide | B176: kWh / m² / an | C176: ='BASE TEC-Tec'!E227 -> 250
A177: ='BASE TEC-Tec'!D228 -> production de repas (électrique) | B177: kWh / m² / an | C177: ='BASE TEC-Tec'!E228 -> 900
A178: ='BASE TEC-Tec'!D229 -> production de repas (gaz) | B178: kWh / m² / an | C178: ='BASE TEC-Tec'!E229 -> 500
A179: ='BASE TEC-Tec'!B230 -> eau chaude pour la cuisine | C179: =IF('BASE TEC-Tec'!K230="","",'BASE TEC-Tec'!K230) -> 
A180: ='BASE TEC-Tec'!D232 -> sans (ou sur ECS) | B180: kWh / m² / an | C180: ='BASE TEC-Tec'!E232 -> 0
A181: ='BASE TEC-Tec'!D233 -> électrique | B181: kWh / m² / an | C181: ='BASE TEC-Tec'!E233 -> 150
A182: ='BASE TEC-Tec'!D234 -> solaire + appoint électrique | B182: kWh / m² / an | C182: ='BASE TEC-Tec'!E234 -> 50
A183: ='BASE TEC-Tec'!D235 -> thermodynamique | B183: kWh / m² / an | C183: ='BASE TEC-Tec'!E235 -> 60
A184: ='BASE TEC-Tec'!D236 -> gaz | B184: kWh / m² / an | C184: ='BASE TEC-Tec'!E236 -> 0
A185: ='BASE TEC-Tec'!B240 -> Prises de courant | B185: =IF('BASE TEC-Tec'!J240="","",'BASE TEC-Tec'!J240) ->  | C185: =IF('BASE TEC-Tec'!K240="","",'BASE TEC-Tec'!K240) -> 
A186: ='BASE TEC-Tec'!D242 -> sans gestion | B186: kWh / m² / an | C186: ='BASE TEC-Tec'!E242 -> 1
A187: ='BASE TEC-Tec'!D243 -> extinction auto. des veilles | B187: kWh / m² / an | C187: ='BASE TEC-Tec'!E243 -> 0.75
A188: ='BASE TEC-Tec'!B244 -> prises de courant permanentes | B188: =IF('BASE TEC-Tec'!J244="","",'BASE TEC-Tec'!J244) -> kg CO2e / kWh | C188: =IF('BASE TEC-Tec'!K244="","",'BASE TEC-Tec'!K244) -> 0.75
A189: ='BASE TEC-Tec'!B246 -> bureautique | B189: =IF('BASE TEC-Tec'!J246="","",'BASE TEC-Tec'!J246) ->  | C189: =IF('BASE TEC-Tec'!K246="","",'BASE TEC-Tec'!K246) -> 
A190: ='BASE TEC-Tec'!D248 -> standard | B190: kWh / m² / an | C190: ='BASE TEC-Tec'!E248 -> 1
A191: ='BASE TEC-Tec'!D249 -> à faible consommation | B191: kWh / m² / an | C191: ='BASE TEC-Tec'!E249 -> 0.5
A192: ='BASE TEC-Tec'!B250 -> prises de courant intermittentes | B192: =IF('BASE TEC-Tec'!J250="","",'BASE TEC-Tec'!J250) -> kg CO2e / kWh | C192: =IF('BASE TEC-Tec'!K250="","",'BASE TEC-Tec'!K250) -> 0.7
A193: ='BASE TEC-Tec'!B252 -> Eau Chaude Sanitaire | B193: =IF('BASE TEC-Tec'!J252="","",'BASE TEC-Tec'!J252) -> kg CO2e / kWh | C193: =IF('BASE TEC-Tec'!K252="","",'BASE TEC-Tec'!K252) -> 0.75
A194: ='BASE TEC-Tec'!B253 -> consommation unitaire | B194: =IF('BASE TEC-Tec'!J253="","",'BASE TEC-Tec'!J253) ->  | C194: =IF('BASE TEC-Tec'!K253="","",'BASE TEC-Tec'!K253) -> 
A195: ='BASE TEC-Tec'!D255 -> sans | B195: kWh / m² / an | C195: ='BASE TEC-Tec'!E255 -> 0
A196: ='BASE TEC-Tec'!D256 -> 100 % solaire | B196: kWh / m² / an | C196: ='BASE TEC-Tec'!E256 -> 0.2
A197: ='BASE TEC-Tec'!D257 -> solaire + appoint électrique | B197: kWh / m² / an | C197: ='BASE TEC-Tec'!E257 -> 2
A198: ='BASE TEC-Tec'!D258 -> thermodynamique | B198: kWh / m² / an | C198: ='BASE TEC-Tec'!E258 -> 2
A199: ='BASE TEC-Tec'!D259 -> ballon élec. à accumulateur | B199: kWh / m² / an | C199: ='BASE TEC-Tec'!E259 -> 5
A200: ='BASE TEC-Tec'!D260 -> chauffe-eau instantané | B200: kWh / m² / an | C200: ='BASE TEC-Tec'!E260 -> 10
A201: ='BASE TEC-Tec'!B261 -> Froid commercial | B201: =IF('BASE TEC-Tec'!J261="","",'BASE TEC-Tec'!J261) -> kg CO2e / kWh | C201: =IF('BASE TEC-Tec'!K261="","",'BASE TEC-Tec'!K261) -> 0.7
... 112 more rows
